{"text_format":"3","workbook":"xlsx","n_sheets":2,"sheets":["Klassetimeplan","Klasseliste"],"not_rendered":{"defined_names":17},"read":"whole","date_system":"1900"}

{"sheet":"Klassetimeplan","index":0,"n_rows":56,"n_cols":9,"rows_kept":56,"merged":[[0,1,1,5],[0,8,1,8]]}
[null,"KLASSETIMEPLAN",{"$nulls":4},"START \nTIMEPLAN","TIDSINTERVALL","Klasseliste"]
[{"$nulls":6},"08:00:00","15 MIN"]
[null,"KLOKKESLETT","SØNDAG","MANDAG","TIRSDAG","ONSDAG","TORSDAG","FREDAG","LØRDAG"]
[null,{"$f":"ScheduleStart","v":"08:00:00"},{"$f":"IFERROR(INDEX(Klasseliste[],MATCH(SUMPRODUCT((Klasseliste[DAG]=Klassetimeplan[[#Headers],[SØNDAG]])*(ROUNDDOWN($B4,10)>=ROUNDDOWN(Klasseliste[STARTTIDSPUNKT],10))*($B4<=Klasseliste[SLUTTIDSPUNKT]),Klasseliste[UNIK]),Klasseliste[UNIK],0),2),0)","v":0},{"$f":"IFERROR(INDEX(Klasseliste[],MATCH(SUMPRODUCT((Klasseliste[DAG]=Klassetimeplan[[#Headers],[MANDAG]])*(ROUNDDOWN($B4,10)>=ROUNDDOWN(Klasseliste[STARTTIDSPUNKT],10))*($B4<=Klasseliste[SLUTTIDSPUNKT]),Klasseliste[UNIK]),Klasseliste[UNIK],0),2),0)","v":0},{"$f":"IFERROR(INDEX(Klasseliste[],MATCH(SUMPRODUCT((Klasseliste[DAG]=Klassetimeplan[[#Headers],[TIRSDAG]])*(ROUNDDOWN($B4,10)>=ROUNDDOWN(Klasseliste[STARTTIDSPUNKT],10))*($B4<=Klasseliste[SLUTTIDSPUNKT]),Klasseliste[UNIK]),Klasseliste[UNIK],0),2),0)","v":0},{"$f":"IFERROR(INDEX(Klasseliste[],MATCH(SUMPRODUCT((Klasseliste[DAG]=Klassetimeplan[[#Headers],[ONSDAG]])*(ROUNDDOWN($B4,10)>=ROUNDDOWN(Klasseliste[STARTTIDSPUNKT],10))*($B4<=Klasseliste[SLUTTIDSPUNKT]),Klasseliste[UNIK]),Klasseliste[UNIK],0),2),0)","v":0},{"$f":"IFERROR(INDEX(Klasseliste[],MATCH(SUMPRODUCT((Klasseliste[DAG]=Klassetimeplan[[#Headers],[TORSDAG]])*(ROUNDDOWN($B4,10)>=ROUNDDOWN(Klasseliste[STARTTIDSPUNKT],10))*($B4<=Klasseliste[SLUTTIDSPUNKT]),Klasseliste[UNIK]),Klasseliste[UNIK],0),2),0)","v":0},{"$f":"IFERROR(INDEX(Klasseliste[],MATCH(SUMPRODUCT((Klasseliste[DAG]=Klassetimeplan[[#Headers],[FREDAG]])*(ROUNDDOWN($B4,10)>=ROUNDDOWN(Klasseliste[STARTTIDSPUNKT],10))*($B4<=Klasseliste[SLUTTIDSPUNKT]),Klasseliste[UNIK]),Klasseliste[UNIK],0),2),0)","v":0},{"$f":"IFERROR(INDEX(Klasseliste[],MATCH(SUMPRODUCT((Klasseliste[DAG]=Klassetimeplan[[#Headers],[LØRDAG]])*(ROUNDDOWN($B4,10)>=ROUNDDOWN(Klasseliste[STARTTIDSPUNKT],10))*($B4<=Klasseliste[SLUTTIDSPUNKT]),Klasseliste[UNIK]),Klasseliste[UNIK],0),2),0)","v":0}]
[null,{"$f":"B4+Økning","v":"08:15:00"},{"$f":"IFERROR(INDEX(Klasseliste[],MATCH(SUMPRODUCT((Klasseliste[DAG]=Klassetimeplan[[#Headers],[SØNDAG]])*(ROUNDDOWN($B5,10)>=ROUNDDOWN(Klasseliste[STARTTIDSPUNKT],10))*($B5<=Klasseliste[SLUTTIDSPUNKT]),Klasseliste[UNIK]),Klasseliste[UNIK],0),2),0)","v":0},{"$f":"IFERROR(INDEX(Klasseliste[],MATCH(SUMPRODUCT((Klasseliste[DAG]=Klassetimeplan[[#Headers],[MANDAG]])*(ROUNDDOWN($B5,10)>=ROUNDDOWN(Klasseliste[STARTTIDSPUNKT],10))*($B5<=Klasseliste[SLUTTIDSPUNKT]),Klasseliste[UNIK]),Klasseliste[UNIK],0),2),0)","v":"MTH-113"},{"$f":"IFERROR(INDEX(Klasseliste[],MATCH(SUMPRODUCT((Klasseliste[DAG]=Klassetimeplan[[#Headers],[TIRSDAG]])*(ROUNDDOWN($B5,10)>=ROUNDDOWN(Klasseliste[STARTTIDSPUNKT],10))*($B5<=Klasseliste[SLUTTIDSPUNKT]),Klasseliste[UNIK]),Klasseliste[UNIK],0),2),0)","v":0},{"$f":"IFERROR(INDEX(Klasseliste[],MATCH(SUMPRODUCT((Klasseliste[DAG]=Klassetimeplan[[#Headers],[ONSDAG]])*(ROUNDDOWN($B5,10)>=ROUNDDOWN(Klasseliste[STARTTIDSPUNKT],10))*($B5<=Klasseliste[SLUTTIDSPUNKT]),Klasseliste[UNIK]),Klasseliste[UNIK],0),2),0)","v":"MTH-113"},{"$f":"IFERROR(INDEX(Klasseliste[],MATCH(SUMPRODUCT((Klasseliste[DAG]=Klassetimeplan[[#Headers],[TORSDAG]])*(ROUNDDOWN($B5,10)>=ROUNDDOWN(Klasseliste[STARTTIDSPUNKT],10))*($B5<=Klasseliste[SLUTTIDSPUNKT]),Klasseliste[UNIK]),Klasseliste[UNIK],0),2),0)","v":0},{"$f":"IFERROR(INDEX(Klasseliste[],MATCH(SUMPRODUCT((Klasseliste[DAG]=Klassetimeplan[[#Headers],[FREDAG]])*(ROUNDDOWN($B5,10)>=ROUNDDOWN(Klasseliste[STARTTIDSPUNKT],10))*($B5<=Klasseliste[SLUTTIDSPUNKT]),Klasseliste[UNIK]),Klasseliste[UNIK],0),2),0)","v":"MTH-113"},{"$f":"IFERROR(INDEX(Klasseliste[],MATCH(SUMPRODUCT((Klasseliste[DAG]=Klassetimeplan[[#Headers],[LØRDAG]])*(ROUNDDOWN($B5,10)>=ROUNDDOWN(Klasseliste[STARTTIDSPUNKT],10))*($B5<=Klasseliste[SLUTTIDSPUNKT]),Klasseliste[UNIK]),Klasseliste[UNIK],0),2),0)","v":0}]
[null,"08:30:00",{"$f":"IFERROR(INDEX(Klasseliste[],MATCH(SUMPRODUCT((Klasseliste[DAG]=Klassetimeplan[[#Headers],[SØNDAG]])*(ROUNDDOWN($B6,10)>=ROUNDDOWN(Klasseliste[STARTTIDSPUNKT],10))*($B6<=Klasseliste[SLUTTIDSPUNKT]),Klasseliste[UNIK]),Klasseliste[UNIK],0),2),0)","v":0},{"$f":"IFERROR(INDEX(Klasseliste[],MATCH(SUMPRODUCT((Klasseliste[DAG]=Klassetimeplan[[#Headers],[MANDAG]])*(ROUNDDOWN($B6,10)>=ROUNDDOWN(Klasseliste[STARTTIDSPUNKT],10))*($B6<=Klasseliste[SLUTTIDSPUNKT]),Klasseliste[UNIK]),Klasseliste[UNIK],0),2),0)","v":"MTH-113"},{"$f":"IFERROR(INDEX(Klasseliste[],MATCH(SUMPRODUCT((Klasseliste[DAG]=Klassetimeplan[[#Headers],[TIRSDAG]])*(ROUNDDOWN($B6,10)>=ROUNDDOWN(Klasseliste[STARTTIDSPUNKT],10))*($B6<=Klasseliste[SLUTTIDSPUNKT]),Klasseliste[UNIK]),Klasseliste[UNIK],0),2),0)","v":0},{"$f":"IFERROR(INDEX(Klasseliste[],MATCH(SUMPRODUCT((Klasseliste[DAG]=Klassetimeplan[[#Headers],[ONSDAG]])*(ROUNDDOWN($B6,10)>=ROUNDDOWN(Klasseliste[STARTTIDSPUNKT],10))*($B6<=Klasseliste[SLUTTIDSPUNKT]),Klasseliste[UNIK]),Klasseliste[UNIK],0),2),0)","v":"MTH-113"},{"$f":"IFERROR(INDEX(Klasseliste[],MATCH(SUMPRODUCT((Klasseliste[DAG]=Klassetimeplan[[#Headers],[TORSDAG]])*(ROUNDDOWN($B6,10)>=ROUNDDOWN(Klasseliste[STARTTIDSPUNKT],10))*($B6<=Klasseliste[SLUTTIDSPUNKT]),Klasseliste[UNIK]),Klasseliste[UNIK],0),2),0)","v":0},{"$f":"IFERROR(INDEX(Klasseliste[],MATCH(SUMPRODUCT((Klasseliste[DAG]=Klassetimeplan[[#Headers],[FREDAG]])*(ROUNDDOWN($B6,10)>=ROUNDDOWN(Klasseliste[STARTTIDSPUNKT],10))*($B6<=Klasseliste[SLUTTIDSPUNKT]),Klasseliste[UNIK]),Klasseliste[UNIK],0),2),0)","v":"MTH-113"},{"$f":"IFERROR(INDEX(Klasseliste[],MATCH(SUMPRODUCT((Klasseliste[DAG]=Klassetimeplan[[#Headers],[LØRDAG]])*(ROUNDDOWN($B6,10)>=ROUNDDOWN(Klasseliste[STARTTIDSPUNKT],10))*($B6<=Klasseliste[SLUTTIDSPUNKT]),Klasseliste[UNIK]),Klasseliste[UNIK],0),2),0)","v":0}]
[null,"08:45:00",{"$f":"IFERROR(INDEX(Klasseliste[],MATCH(SUMPRODUCT((Klasseliste[DAG]=Klassetimeplan[[#Headers],[SØNDAG]])*(ROUNDDOWN($B7,10)>=ROUNDDOWN(Klasseliste[STARTTIDSPUNKT],10))*($B7<=Klasseliste[SLUTTIDSPUNKT]),Klasseliste[UNIK]),Klasseliste[UNIK],0),2),0)","v":0},{"$f":"IFERROR(INDEX(Klasseliste[],MATCH(SUMPRODUCT((Klasseliste[DAG]=Klassetimeplan[[#Headers],[MANDAG]])*(ROUNDDOWN($B7,10)>=ROUNDDOWN(Klasseliste[STARTTIDSPUNKT],10))*($B7<=Klasseliste[SLUTTIDSPUNKT]),Klasseliste[UNIK]),Klasseliste[UNIK],0),2),0)","v":"MTH-113"},{"$f":"IFERROR(INDEX(Klasseliste[],MATCH(SUMPRODUCT((Klasseliste[DAG]=Klassetimeplan[[#Headers],[TIRSDAG]])*(ROUNDDOWN($B7,10)>=ROUNDDOWN(Klasseliste[STARTTIDSPUNKT],10))*($B7<=Klasseliste[SLUTTIDSPUNKT]),Klasseliste[UNIK]),Klasseliste[UNIK],0),2),0)","v":0},{"$f":"IFERROR(INDEX(Klasseliste[],MATCH(SUMPRODUCT((Klasseliste[DAG]=Klassetimeplan[[#Headers],[ONSDAG]])*(ROUNDDOWN($B7,10)>=ROUNDDOWN(Klasseliste[STARTTIDSPUNKT],10))*($B7<=Klasseliste[SLUTTIDSPUNKT]),Klasseliste[UNIK]),Klasseliste[UNIK],0),2),0)","v":"MTH-113"},{"$f":"IFERROR(INDEX(Klasseliste[],MATCH(SUMPRODUCT((Klasseliste[DAG]=Klassetimeplan[[#Headers],[TORSDAG]])*(ROUNDDOWN($B7,10)>=ROUNDDOWN(Klasseliste[STARTTIDSPUNKT],10))*($B7<=Klasseliste[SLUTTIDSPUNKT]),Klasseliste[UNIK]),Klasseliste[UNIK],0),2),0)","v":0},{"$f":"IFERROR(INDEX(Klasseliste[],MATCH(SUMPRODUCT((Klasseliste[DAG]=Klassetimeplan[[#Headers],[FREDAG]])*(ROUNDDOWN($B7,10)>=ROUNDDOWN(Klasseliste[STARTTIDSPUNKT],10))*($B7<=Klasseliste[SLUTTIDSPUNKT]),Klasseliste[UNIK]),Klasseliste[UNIK],0),2),0)","v":"MTH-113"},{"$f":"IFERROR(INDEX(Klasseliste[],MATCH(SUMPRODUCT((Klasseliste[DAG]=Klassetimeplan[[#Headers],[LØRDAG]])*(ROUNDDOWN($B7,10)>=ROUNDDOWN(Klasseliste[STARTTIDSPUNKT],10))*($B7<=Klasseliste[SLUTTIDSPUNKT]),Klasseliste[UNIK]),Klasseliste[UNIK],0),2),0)","v":0}]
[null,"09:00:00",{"$f":"IFERROR(INDEX(Klasseliste[],MATCH(SUMPRODUCT((Klasseliste[DAG]=Klassetimeplan[[#Headers],[SØNDAG]])*(ROUNDDOWN($B8,10)>=ROUNDDOWN(Klasseliste[STARTTIDSPUNKT],10))*($B8<=Klasseliste[SLUTTIDSPUNKT]),Klasseliste[UNIK]),Klasseliste[UNIK],0),2),0)","v":0},{"$f":"IFERROR(INDEX(Klasseliste[],MATCH(SUMPRODUCT((Klasseliste[DAG]=Klassetimeplan[[#Headers],[MANDAG]])*(ROUNDDOWN($B8,10)>=ROUNDDOWN(Klasseliste[STARTTIDSPUNKT],10))*($B8<=Klasseliste[SLUTTIDSPUNKT]),Klasseliste[UNIK]),Klasseliste[UNIK],0),2),0)","v":"MTH-113"},{"$f":"IFERROR(INDEX(Klasseliste[],MATCH(SUMPRODUCT((Klasseliste[DAG]=Klassetimeplan[[#Headers],[TIRSDAG]])*(ROUNDDOWN($B8,10)>=ROUNDDOWN(Klasseliste[STARTTIDSPUNKT],10))*($B8<=Klasseliste[SLUTTIDSPUNKT]),Klasseliste[UNIK]),Klasseliste[UNIK],0),2),0)","v":0},{"$f":"IFERROR(INDEX(Klasseliste[],MATCH(SUMPRODUCT((Klasseliste[DAG]=Klassetimeplan[[#Headers],[ONSDAG]])*(ROUNDDOWN($B8,10)>=ROUNDDOWN(Klasseliste[STARTTIDSPUNKT],10))*($B8<=Klasseliste[SLUTTIDSPUNKT]),Klasseliste[UNIK]),Klasseliste[UNIK],0),2),0)","v":"MTH-113"},{"$f":"IFERROR(INDEX(Klasseliste[],MATCH(SUMPRODUCT((Klasseliste[DAG]=Klassetimeplan[[#Headers],[TORSDAG]])*(ROUNDDOWN($B8,10)>=ROUNDDOWN(Klasseliste[STARTTIDSPUNKT],10))*($B8<=Klasseliste[SLUTTIDSPUNKT]),Klasseliste[UNIK]),Klasseliste[UNIK],0),2),0)","v":0},{"$f":"IFERROR(INDEX(Klasseliste[],MATCH(SUMPRODUCT((Klasseliste[DAG]=Klassetimeplan[[#Headers],[FREDAG]])*(ROUNDDOWN($B8,10)>=ROUNDDOWN(Klasseliste[STARTTIDSPUNKT],10))*($B8<=Klasseliste[SLUTTIDSPUNKT]),Klasseliste[UNIK]),Klasseliste[UNIK],0),2),0)","v":"MTH-113"},{"$f":"IFERROR(INDEX(Klasseliste[],MATCH(SUMPRODUCT((Klasseliste[DAG]=Klassetimeplan[[#Headers],[LØRDAG]])*(ROUNDDOWN($B8,10)>=ROUNDDOWN(Klasseliste[STARTTIDSPUNKT],10))*($B8<=Klasseliste[SLUTTIDSPUNKT]),Klasseliste[UNIK]),Klasseliste[UNIK],0),2),0)","v":0}]
[null,"09:15:00",{"$f":"IFERROR(INDEX(Klasseliste[],MATCH(SUMPRODUCT((Klasseliste[DAG]=Klassetimeplan[[#Headers],[SØNDAG]])*(ROUNDDOWN($B9,10)>=ROUNDDOWN(Klasseliste[STARTTIDSPUNKT],10))*($B9<=Klasseliste[SLUTTIDSPUNKT]),Klasseliste[UNIK]),Klasseliste[UNIK],0),2),0)","v":0},{"$f":"IFERROR(INDEX(Klasseliste[],MATCH(SUMPRODUCT((Klasseliste[DAG]=Klassetimeplan[[#Headers],[MANDAG]])*(ROUNDDOWN($B9,10)>=ROUNDDOWN(Klasseliste[STARTTIDSPUNKT],10))*($B9<=Klasseliste[SLUTTIDSPUNKT]),Klasseliste[UNIK]),Klasseliste[UNIK],0),2),0)","v":"MTH-113"},{"$f":"IFERROR(INDEX(Klasseliste[],MATCH(SUMPRODUCT((Klasseliste[DAG]=Klassetimeplan[[#Headers],[TIRSDAG]])*(ROUNDDOWN($B9,10)>=ROUNDDOWN(Klasseliste[STARTTIDSPUNKT],10))*($B9<=Klasseliste[SLUTTIDSPUNKT]),Klasseliste[UNIK]),Klasseliste[UNIK],0),2),0)","v":0},{"$f":"IFERROR(INDEX(Klasseliste[],MATCH(SUMPRODUCT((Klasseliste[DAG]=Klassetimeplan[[#Headers],[ONSDAG]])*(ROUNDDOWN($B9,10)>=ROUNDDOWN(Klasseliste[STARTTIDSPUNKT],10))*($B9<=Klasseliste[SLUTTIDSPUNKT]),Klasseliste[UNIK]),Klasseliste[UNIK],0),2),0)","v":"MTH-113"},{"$f":"IFERROR(INDEX(Klasseliste[],MATCH(SUMPRODUCT((Klasseliste[DAG]=Klassetimeplan[[#Headers],[TORSDAG]])*(ROUNDDOWN($B9,10)>=ROUNDDOWN(Klasseliste[STARTTIDSPUNKT],10))*($B9<=Klasseliste[SLUTTIDSPUNKT]),Klasseliste[UNIK]),Klasseliste[UNIK],0),2),0)","v":0},{"$f":"IFERROR(INDEX(Klasseliste[],MATCH(SUMPRODUCT((Klasseliste[DAG]=Klassetimeplan[[#Headers],[FREDAG]])*(ROUNDDOWN($B9,10)>=ROUNDDOWN(Klasseliste[STARTTIDSPUNKT],10))*($B9<=Klasseliste[SLUTTIDSPUNKT]),Klasseliste[UNIK]),Klasseliste[UNIK],0),2),0)","v":"MTH-113"},{"$f":"IFERROR(INDEX(Klasseliste[],MATCH(SUMPRODUCT((Klasseliste[DAG]=Klassetimeplan[[#Headers],[LØRDAG]])*(ROUNDDOWN($B9,10)>=ROUNDDOWN(Klasseliste[STARTTIDSPUNKT],10))*($B9<=Klasseliste[SLUTTIDSPUNKT]),Klasseliste[UNIK]),Klasseliste[UNIK],0),2),0)","v":0}]
[null,"09:30:00",{"$f":"IFERROR(INDEX(Klasseliste[],MATCH(SUMPRODUCT((Klasseliste[DAG]=Klassetimeplan[[#Headers],[SØNDAG]])*(ROUNDDOWN($B10,10)>=ROUNDDOWN(Klasseliste[STARTTIDSPUNKT],10))*($B10<=Klasseliste[SLUTTIDSPUNKT]),Klasseliste[UNIK]),Klasseliste[UNIK],0),2),0)","v":0},{"$f":"IFERROR(INDEX(Klasseliste[],MATCH(SUMPRODUCT((Klasseliste[DAG]=Klassetimeplan[[#Headers],[MANDAG]])*(ROUNDDOWN($B10,10)>=ROUNDDOWN(Klasseliste[STARTTIDSPUNKT],10))*($B10<=Klasseliste[SLUTTIDSPUNKT]),Klasseliste[UNIK]),Klasseliste[UNIK],0),2),0)","v":0},{"$f":"IFERROR(INDEX(Klasseliste[],MATCH(SUMPRODUCT((Klasseliste[DAG]=Klassetimeplan[[#Headers],[TIRSDAG]])*(ROUNDDOWN($B10,10)>=ROUNDDOWN(Klasseliste[STARTTIDSPUNKT],10))*($B10<=Klasseliste[SLUTTIDSPUNKT]),Klasseliste[UNIK]),Klasseliste[UNIK],0),2),0)","v":0},{"$f":"IFERROR(INDEX(Klasseliste[],MATCH(SUMPRODUCT((Klasseliste[DAG]=Klassetimeplan[[#Headers],[ONSDAG]])*(ROUNDDOWN($B10,10)>=ROUNDDOWN(Klasseliste[STARTTIDSPUNKT],10))*($B10<=Klasseliste[SLUTTIDSPUNKT]),Klasseliste[UNIK]),Klasseliste[UNIK],0),2),0)","v":0},{"$f":"IFERROR(INDEX(Klasseliste[],MATCH(SUMPRODUCT((Klasseliste[DAG]=Klassetimeplan[[#Headers],[TORSDAG]])*(ROUNDDOWN($B10,10)>=ROUNDDOWN(Klasseliste[STARTTIDSPUNKT],10))*($B10<=Klasseliste[SLUTTIDSPUNKT]),Klasseliste[UNIK]),Klasseliste[UNIK],0),2),0)","v":0},{"$f":"IFERROR(INDEX(Klasseliste[],MATCH(SUMPRODUCT((Klasseliste[DAG]=Klassetimeplan[[#Headers],[FREDAG]])*(ROUNDDOWN($B10,10)>=ROUNDDOWN(Klasseliste[STARTTIDSPUNKT],10))*($B10<=Klasseliste[SLUTTIDSPUNKT]),Klasseliste[UNIK]),Klasseliste[UNIK],0),2),0)","v":0},{"$f":"IFERROR(INDEX(Klasseliste[],MATCH(SUMPRODUCT((Klasseliste[DAG]=Klassetimeplan[[#Headers],[LØRDAG]])*(ROUNDDOWN($B10,10)>=ROUNDDOWN(Klasseliste[STARTTIDSPUNKT],10))*($B10<=Klasseliste[SLUTTIDSPUNKT]),Klasseliste[UNIK]),Klasseliste[UNIK],0),2),0)","v":0}]
[null,"09:45:00",{"$f":"IFERROR(INDEX(Klasseliste[],MATCH(SUMPRODUCT((Klasseliste[DAG]=Klassetimeplan[[#Headers],[SØNDAG]])*(ROUNDDOWN($B11,10)>=ROUNDDOWN(Klasseliste[STARTTIDSPUNKT],10))*($B11<=Klasseliste[SLUTTIDSPUNKT]),Klasseliste[UNIK]),Klasseliste[UNIK],0),2),0)","v":0},{"$f":"IFERROR(INDEX(Klasseliste[],MATCH(SUMPRODUCT((Klasseliste[DAG]=Klassetimeplan[[#Headers],[MANDAG]])*(ROUNDDOWN($B11,10)>=ROUNDDOWN(Klasseliste[STARTTIDSPUNKT],10))*($B11<=Klasseliste[SLUTTIDSPUNKT]),Klasseliste[UNIK]),Klasseliste[UNIK],0),2),0)","v":0},{"$f":"IFERROR(INDEX(Klasseliste[],MATCH(SUMPRODUCT((Klasseliste[DAG]=Klassetimeplan[[#Headers],[TIRSDAG]])*(ROUNDDOWN($B11,10)>=ROUNDDOWN(Klasseliste[STARTTIDSPUNKT],10))*($B11<=Klasseliste[SLUTTIDSPUNKT]),Klasseliste[UNIK]),Klasseliste[UNIK],0),2),0)","v":0},{"$f":"IFERROR(INDEX(Klasseliste[],MATCH(SUMPRODUCT((Klasseliste[DAG]=Klassetimeplan[[#Headers],[ONSDAG]])*(ROUNDDOWN($B11,10)>=ROUNDDOWN(Klasseliste[STARTTIDSPUNKT],10))*($B11<=Klasseliste[SLUTTIDSPUNKT]),Klasseliste[UNIK]),Klasseliste[UNIK],0),2),0)","v":0},{"$f":"IFERROR(INDEX(Klasseliste[],MATCH(SUMPRODUCT((Klasseliste[DAG]=Klassetimeplan[[#Headers],[TORSDAG]])*(ROUNDDOWN($B11,10)>=ROUNDDOWN(Klasseliste[STARTTIDSPUNKT],10))*($B11<=Klasseliste[SLUTTIDSPUNKT]),Klasseliste[UNIK]),Klasseliste[UNIK],0),2),0)","v":0},{"$f":"IFERROR(INDEX(Klasseliste[],MATCH(SUMPRODUCT((Klasseliste[DAG]=Klassetimeplan[[#Headers],[FREDAG]])*(ROUNDDOWN($B11,10)>=ROUNDDOWN(Klasseliste[STARTTIDSPUNKT],10))*($B11<=Klasseliste[SLUTTIDSPUNKT]),Klasseliste[UNIK]),Klasseliste[UNIK],0),2),0)","v":0},{"$f":"IFERROR(INDEX(Klasseliste[],MATCH(SUMPRODUCT((Klasseliste[DAG]=Klassetimeplan[[#Headers],[LØRDAG]])*(ROUNDDOWN($B11,10)>=ROUNDDOWN(Klasseliste[STARTTIDSPUNKT],10))*($B11<=Klasseliste[SLUTTIDSPUNKT]),Klasseliste[UNIK]),Klasseliste[UNIK],0),2),0)","v":0}]
[null,{"$f":"B11+Økning","v":"10:00:00"},{"$f":"IFERROR(INDEX(Klasseliste[],MATCH(SUMPRODUCT((Klasseliste[DAG]=Klassetimeplan[[#Headers],[SØNDAG]])*(ROUNDDOWN($B12,10)>=ROUNDDOWN(Klasseliste[STARTTIDSPUNKT],10))*($B12<=Klasseliste[SLUTTIDSPUNKT]),Klasseliste[UNIK]),Klasseliste[UNIK],0),2),0)","v":0},{"$f":"IFERROR(INDEX(Klasseliste[],MATCH(SUMPRODUCT((Klasseliste[DAG]=Klassetimeplan[[#Headers],[MANDAG]])*(ROUNDDOWN($B12,10)>=ROUNDDOWN(Klasseliste[STARTTIDSPUNKT],10))*($B12<=Klasseliste[SLUTTIDSPUNKT]),Klasseliste[UNIK]),Klasseliste[UNIK],0),2),0)","v":0},{"$f":"IFERROR(INDEX(Klasseliste[],MATCH(SUMPRODUCT((Klasseliste[DAG]=Klassetimeplan[[#Headers],[TIRSDAG]])*(ROUNDDOWN($B12,10)>=ROUNDDOWN(Klasseliste[STARTTIDSPUNKT],10))*($B12<=Klasseliste[SLUTTIDSPUNKT]),Klasseliste[UNIK]),Klasseliste[UNIK],0),2),0)","v":0},{"$f":"IFERROR(INDEX(Klasseliste[],MATCH(SUMPRODUCT((Klasseliste[DAG]=Klassetimeplan[[#Headers],[ONSDAG]])*(ROUNDDOWN($B12,10)>=ROUNDDOWN(Klasseliste[STARTTIDSPUNKT],10))*($B12<=Klasseliste[SLUTTIDSPUNKT]),Klasseliste[UNIK]),Klasseliste[UNIK],0),2),0)","v":0},{"$f":"IFERROR(INDEX(Klasseliste[],MATCH(SUMPRODUCT((Klasseliste[DAG]=Klassetimeplan[[#Headers],[TORSDAG]])*(ROUNDDOWN($B12,10)>=ROUNDDOWN(Klasseliste[STARTTIDSPUNKT],10))*($B12<=Klasseliste[SLUTTIDSPUNKT]),Klasseliste[UNIK]),Klasseliste[UNIK],0),2),0)","v":0},{"$f":"IFERROR(INDEX(Klasseliste[],MATCH(SUMPRODUCT((Klasseliste[DAG]=Klassetimeplan[[#Headers],[FREDAG]])*(ROUNDDOWN($B12,10)>=ROUNDDOWN(Klasseliste[STARTTIDSPUNKT],10))*($B12<=Klasseliste[SLUTTIDSPUNKT]),Klasseliste[UNIK]),Klasseliste[UNIK],0),2),0)","v":0},{"$f":"IFERROR(INDEX(Klasseliste[],MATCH(SUMPRODUCT((Klasseliste[DAG]=Klassetimeplan[[#Headers],[LØRDAG]])*(ROUNDDOWN($B12,10)>=ROUNDDOWN(Klasseliste[STARTTIDSPUNKT],10))*($B12<=Klasseliste[SLUTTIDSPUNKT]),Klasseliste[UNIK]),Klasseliste[UNIK],0),2),0)","v":0}]
[null,"10:15:00",{"$f":"IFERROR(INDEX(Klasseliste[],MATCH(SUMPRODUCT((Klasseliste[DAG]=Klassetimeplan[[#Headers],[SØNDAG]])*(ROUNDDOWN($B13,10)>=ROUNDDOWN(Klasseliste[STARTTIDSPUNKT],10))*($B13<=Klasseliste[SLUTTIDSPUNKT]),Klasseliste[UNIK]),Klasseliste[UNIK],0),2),0)","v":0},{"$f":"IFERROR(INDEX(Klasseliste[],MATCH(SUMPRODUCT((Klasseliste[DAG]=Klassetimeplan[[#Headers],[MANDAG]])*(ROUNDDOWN($B13,10)>=ROUNDDOWN(Klasseliste[STARTTIDSPUNKT],10))*($B13<=Klasseliste[SLUTTIDSPUNKT]),Klasseliste[UNIK]),Klasseliste[UNIK],0),2),0)","v":0},{"$f":"IFERROR(INDEX(Klasseliste[],MATCH(SUMPRODUCT((Klasseliste[DAG]=Klassetimeplan[[#Headers],[TIRSDAG]])*(ROUNDDOWN($B13,10)>=ROUNDDOWN(Klasseliste[STARTTIDSPUNKT],10))*($B13<=Klasseliste[SLUTTIDSPUNKT]),Klasseliste[UNIK]),Klasseliste[UNIK],0),2),0)","v":0},{"$f":"IFERROR(INDEX(Klasseliste[],MATCH(SUMPRODUCT((Klasseliste[DAG]=Klassetimeplan[[#Headers],[ONSDAG]])*(ROUNDDOWN($B13,10)>=ROUNDDOWN(Klasseliste[STARTTIDSPUNKT],10))*($B13<=Klasseliste[SLUTTIDSPUNKT]),Klasseliste[UNIK]),Klasseliste[UNIK],0),2),0)","v":0},{"$f":"IFERROR(INDEX(Klasseliste[],MATCH(SUMPRODUCT((Klasseliste[DAG]=Klassetimeplan[[#Headers],[TORSDAG]])*(ROUNDDOWN($B13,10)>=ROUNDDOWN(Klasseliste[STARTTIDSPUNKT],10))*($B13<=Klasseliste[SLUTTIDSPUNKT]),Klasseliste[UNIK]),Klasseliste[UNIK],0),2),0)","v":0},{"$f":"IFERROR(INDEX(Klasseliste[],MATCH(SUMPRODUCT((Klasseliste[DAG]=Klassetimeplan[[#Headers],[FREDAG]])*(ROUNDDOWN($B13,10)>=ROUNDDOWN(Klasseliste[STARTTIDSPUNKT],10))*($B13<=Klasseliste[SLUTTIDSPUNKT]),Klasseliste[UNIK]),Klasseliste[UNIK],0),2),0)","v":0},{"$f":"IFERROR(INDEX(Klasseliste[],MATCH(SUMPRODUCT((Klasseliste[DAG]=Klassetimeplan[[#Headers],[LØRDAG]])*(ROUNDDOWN($B13,10)>=ROUNDDOWN(Klasseliste[STARTTIDSPUNKT],10))*($B13<=Klasseliste[SLUTTIDSPUNKT]),Klasseliste[UNIK]),Klasseliste[UNIK],0),2),0)","v":0}]
[null,"10:30:00",{"$f":"IFERROR(INDEX(Klasseliste[],MATCH(SUMPRODUCT((Klasseliste[DAG]=Klassetimeplan[[#Headers],[SØNDAG]])*(ROUNDDOWN($B14,10)>=ROUNDDOWN(Klasseliste[STARTTIDSPUNKT],10))*($B14<=Klasseliste[SLUTTIDSPUNKT]),Klasseliste[UNIK]),Klasseliste[UNIK],0),2),0)","v":0},{"$f":"IFERROR(INDEX(Klasseliste[],MATCH(SUMPRODUCT((Klasseliste[DAG]=Klassetimeplan[[#Headers],[MANDAG]])*(ROUNDDOWN($B14,10)>=ROUNDDOWN(Klasseliste[STARTTIDSPUNKT],10))*($B14<=Klasseliste[SLUTTIDSPUNKT]),Klasseliste[UNIK]),Klasseliste[UNIK],0),2),0)","v":0},{"$f":"IFERROR(INDEX(Klasseliste[],MATCH(SUMPRODUCT((Klasseliste[DAG]=Klassetimeplan[[#Headers],[TIRSDAG]])*(ROUNDDOWN($B14,10)>=ROUNDDOWN(Klasseliste[STARTTIDSPUNKT],10))*($B14<=Klasseliste[SLUTTIDSPUNKT]),Klasseliste[UNIK]),Klasseliste[UNIK],0),2),0)","v":0},{"$f":"IFERROR(INDEX(Klasseliste[],MATCH(SUMPRODUCT((Klasseliste[DAG]=Klassetimeplan[[#Headers],[ONSDAG]])*(ROUNDDOWN($B14,10)>=ROUNDDOWN(Klasseliste[STARTTIDSPUNKT],10))*($B14<=Klasseliste[SLUTTIDSPUNKT]),Klasseliste[UNIK]),Klasseliste[UNIK],0),2),0)","v":0},{"$f":"IFERROR(INDEX(Klasseliste[],MATCH(SUMPRODUCT((Klasseliste[DAG]=Klassetimeplan[[#Headers],[TORSDAG]])*(ROUNDDOWN($B14,10)>=ROUNDDOWN(Klasseliste[STARTTIDSPUNKT],10))*($B14<=Klasseliste[SLUTTIDSPUNKT]),Klasseliste[UNIK]),Klasseliste[UNIK],0),2),0)","v":0},{"$f":"IFERROR(INDEX(Klasseliste[],MATCH(SUMPRODUCT((Klasseliste[DAG]=Klassetimeplan[[#Headers],[FREDAG]])*(ROUNDDOWN($B14,10)>=ROUNDDOWN(Klasseliste[STARTTIDSPUNKT],10))*($B14<=Klasseliste[SLUTTIDSPUNKT]),Klasseliste[UNIK]),Klasseliste[UNIK],0),2),0)","v":0},{"$f":"IFERROR(INDEX(Klasseliste[],MATCH(SUMPRODUCT((Klasseliste[DAG]=Klassetimeplan[[#Headers],[LØRDAG]])*(ROUNDDOWN($B14,10)>=ROUNDDOWN(Klasseliste[STARTTIDSPUNKT],10))*($B14<=Klasseliste[SLUTTIDSPUNKT]),Klasseliste[UNIK]),Klasseliste[UNIK],0),2),0)","v":0}]
[null,"10:45:00",{"$f":"IFERROR(INDEX(Klasseliste[],MATCH(SUMPRODUCT((Klasseliste[DAG]=Klassetimeplan[[#Headers],[SØNDAG]])*(ROUNDDOWN($B15,10)>=ROUNDDOWN(Klasseliste[STARTTIDSPUNKT],10))*($B15<=Klasseliste[SLUTTIDSPUNKT]),Klasseliste[UNIK]),Klasseliste[UNIK],0),2),0)","v":0},{"$f":"IFERROR(INDEX(Klasseliste[],MATCH(SUMPRODUCT((Klasseliste[DAG]=Klassetimeplan[[#Headers],[MANDAG]])*(ROUNDDOWN($B15,10)>=ROUNDDOWN(Klasseliste[STARTTIDSPUNKT],10))*($B15<=Klasseliste[SLUTTIDSPUNKT]),Klasseliste[UNIK]),Klasseliste[UNIK],0),2),0)","v":0},{"$f":"IFERROR(INDEX(Klasseliste[],MATCH(SUMPRODUCT((Klasseliste[DAG]=Klassetimeplan[[#Headers],[TIRSDAG]])*(ROUNDDOWN($B15,10)>=ROUNDDOWN(Klasseliste[STARTTIDSPUNKT],10))*($B15<=Klasseliste[SLUTTIDSPUNKT]),Klasseliste[UNIK]),Klasseliste[UNIK],0),2),0)","v":0},{"$f":"IFERROR(INDEX(Klasseliste[],MATCH(SUMPRODUCT((Klasseliste[DAG]=Klassetimeplan[[#Headers],[ONSDAG]])*(ROUNDDOWN($B15,10)>=ROUNDDOWN(Klasseliste[STARTTIDSPUNKT],10))*($B15<=Klasseliste[SLUTTIDSPUNKT]),Klasseliste[UNIK]),Klasseliste[UNIK],0),2),0)","v":0},{"$f":"IFERROR(INDEX(Klasseliste[],MATCH(SUMPRODUCT((Klasseliste[DAG]=Klassetimeplan[[#Headers],[TORSDAG]])*(ROUNDDOWN($B15,10)>=ROUNDDOWN(Klasseliste[STARTTIDSPUNKT],10))*($B15<=Klasseliste[SLUTTIDSPUNKT]),Klasseliste[UNIK]),Klasseliste[UNIK],0),2),0)","v":0},{"$f":"IFERROR(INDEX(Klasseliste[],MATCH(SUMPRODUCT((Klasseliste[DAG]=Klassetimeplan[[#Headers],[FREDAG]])*(ROUNDDOWN($B15,10)>=ROUNDDOWN(Klasseliste[STARTTIDSPUNKT],10))*($B15<=Klasseliste[SLUTTIDSPUNKT]),Klasseliste[UNIK]),Klasseliste[UNIK],0),2),0)","v":0},{"$f":"IFERROR(INDEX(Klasseliste[],MATCH(SUMPRODUCT((Klasseliste[DAG]=Klassetimeplan[[#Headers],[LØRDAG]])*(ROUNDDOWN($B15,10)>=ROUNDDOWN(Klasseliste[STARTTIDSPUNKT],10))*($B15<=Klasseliste[SLUTTIDSPUNKT]),Klasseliste[UNIK]),Klasseliste[UNIK],0),2),0)","v":0}]
[null,"11:00:00",{"$f":"IFERROR(INDEX(Klasseliste[],MATCH(SUMPRODUCT((Klasseliste[DAG]=Klassetimeplan[[#Headers],[SØNDAG]])*(ROUNDDOWN($B16,10)>=ROUNDDOWN(Klasseliste[STARTTIDSPUNKT],10))*($B16<=Klasseliste[SLUTTIDSPUNKT]),Klasseliste[UNIK]),Klasseliste[UNIK],0),2),0)","v":0},{"$f":"IFERROR(INDEX(Klasseliste[],MATCH(SUMPRODUCT((Klasseliste[DAG]=Klassetimeplan[[#Headers],[MANDAG]])*(ROUNDDOWN($B16,10)>=ROUNDDOWN(Klasseliste[STARTTIDSPUNKT],10))*($B16<=Klasseliste[SLUTTIDSPUNKT]),Klasseliste[UNIK]),Klasseliste[UNIK],0),2),0)","v":0},{"$f":"IFERROR(INDEX(Klasseliste[],MATCH(SUMPRODUCT((Klasseliste[DAG]=Klassetimeplan[[#Headers],[TIRSDAG]])*(ROUNDDOWN($B16,10)>=ROUNDDOWN(Klasseliste[STARTTIDSPUNKT],10))*($B16<=Klasseliste[SLUTTIDSPUNKT]),Klasseliste[UNIK]),Klasseliste[UNIK],0),2),0)","v":"HPE-295"},{"$f":"IFERROR(INDEX(Klasseliste[],MATCH(SUMPRODUCT((Klasseliste[DAG]=Klassetimeplan[[#Headers],[ONSDAG]])*(ROUNDDOWN($B16,10)>=ROUNDDOWN(Klasseliste[STARTTIDSPUNKT],10))*($B16<=Klasseliste[SLUTTIDSPUNKT]),Klasseliste[UNIK]),Klasseliste[UNIK],0),2),0)","v":0},{"$f":"IFERROR(INDEX(Klasseliste[],MATCH(SUMPRODUCT((Klasseliste[DAG]=Klassetimeplan[[#Headers],[TORSDAG]])*(ROUNDDOWN($B16,10)>=ROUNDDOWN(Klasseliste[STARTTIDSPUNKT],10))*($B16<=Klasseliste[SLUTTIDSPUNKT]),Klasseliste[UNIK]),Klasseliste[UNIK],0),2),0)","v":"HPE-295"},{"$f":"IFERROR(INDEX(Klasseliste[],MATCH(SUMPRODUCT((Klasseliste[DAG]=Klassetimeplan[[#Headers],[FREDAG]])*(ROUNDDOWN($B16,10)>=ROUNDDOWN(Klasseliste[STARTTIDSPUNKT],10))*($B16<=Klasseliste[SLUTTIDSPUNKT]),Klasseliste[UNIK]),Klasseliste[UNIK],0),2),0)","v":0},{"$f":"IFERROR(INDEX(Klasseliste[],MATCH(SUMPRODUCT((Klasseliste[DAG]=Klassetimeplan[[#Headers],[LØRDAG]])*(ROUNDDOWN($B16,10)>=ROUNDDOWN(Klasseliste[STARTTIDSPUNKT],10))*($B16<=Klasseliste[SLUTTIDSPUNKT]),Klasseliste[UNIK]),Klasseliste[UNIK],0),2),0)","v":0}]
[null,"11:15:00",{"$f":"IFERROR(INDEX(Klasseliste[],MATCH(SUMPRODUCT((Klasseliste[DAG]=Klassetimeplan[[#Headers],[SØNDAG]])*(ROUNDDOWN($B17,10)>=ROUNDDOWN(Klasseliste[STARTTIDSPUNKT],10))*($B17<=Klasseliste[SLUTTIDSPUNKT]),Klasseliste[UNIK]),Klasseliste[UNIK],0),2),0)","v":0},{"$f":"IFERROR(INDEX(Klasseliste[],MATCH(SUMPRODUCT((Klasseliste[DAG]=Klassetimeplan[[#Headers],[MANDAG]])*(ROUNDDOWN($B17,10)>=ROUNDDOWN(Klasseliste[STARTTIDSPUNKT],10))*($B17<=Klasseliste[SLUTTIDSPUNKT]),Klasseliste[UNIK]),Klasseliste[UNIK],0),2),0)","v":0},{"$f":"IFERROR(INDEX(Klasseliste[],MATCH(SUMPRODUCT((Klasseliste[DAG]=Klassetimeplan[[#Headers],[TIRSDAG]])*(ROUNDDOWN($B17,10)>=ROUNDDOWN(Klasseliste[STARTTIDSPUNKT],10))*($B17<=Klasseliste[SLUTTIDSPUNKT]),Klasseliste[UNIK]),Klasseliste[UNIK],0),2),0)","v":"HPE-295"},{"$f":"IFERROR(INDEX(Klasseliste[],MATCH(SUMPRODUCT((Klasseliste[DAG]=Klassetimeplan[[#Headers],[ONSDAG]])*(ROUNDDOWN($B17,10)>=ROUNDDOWN(Klasseliste[STARTTIDSPUNKT],10))*($B17<=Klasseliste[SLUTTIDSPUNKT]),Klasseliste[UNIK]),Klasseliste[UNIK],0),2),0)","v":0},{"$f":"IFERROR(INDEX(Klasseliste[],MATCH(SUMPRODUCT((Klasseliste[DAG]=Klassetimeplan[[#Headers],[TORSDAG]])*(ROUNDDOWN($B17,10)>=ROUNDDOWN(Klasseliste[STARTTIDSPUNKT],10))*($B17<=Klasseliste[SLUTTIDSPUNKT]),Klasseliste[UNIK]),Klasseliste[UNIK],0),2),0)","v":"HPE-295"},{"$f":"IFERROR(INDEX(Klasseliste[],MATCH(SUMPRODUCT((Klasseliste[DAG]=Klassetimeplan[[#Headers],[FREDAG]])*(ROUNDDOWN($B17,10)>=ROUNDDOWN(Klasseliste[STARTTIDSPUNKT],10))*($B17<=Klasseliste[SLUTTIDSPUNKT]),Klasseliste[UNIK]),Klasseliste[UNIK],0),2),0)","v":0},{"$f":"IFERROR(INDEX(Klasseliste[],MATCH(SUMPRODUCT((Klasseliste[DAG]=Klassetimeplan[[#Headers],[LØRDAG]])*(ROUNDDOWN($B17,10)>=ROUNDDOWN(Klasseliste[STARTTIDSPUNKT],10))*($B17<=Klasseliste[SLUTTIDSPUNKT]),Klasseliste[UNIK]),Klasseliste[UNIK],0),2),0)","v":0}]
[null,"11:30:00",{"$f":"IFERROR(INDEX(Klasseliste[],MATCH(SUMPRODUCT((Klasseliste[DAG]=Klassetimeplan[[#Headers],[SØNDAG]])*(ROUNDDOWN($B18,10)>=ROUNDDOWN(Klasseliste[STARTTIDSPUNKT],10))*($B18<=Klasseliste[SLUTTIDSPUNKT]),Klasseliste[UNIK]),Klasseliste[UNIK],0),2),0)","v":0},{"$f":"IFERROR(INDEX(Klasseliste[],MATCH(SUMPRODUCT((Klasseliste[DAG]=Klassetimeplan[[#Headers],[MANDAG]])*(ROUNDDOWN($B18,10)>=ROUNDDOWN(Klasseliste[STARTTIDSPUNKT],10))*($B18<=Klasseliste[SLUTTIDSPUNKT]),Klasseliste[UNIK]),Klasseliste[UNIK],0),2),0)","v":0},{"$f":"IFERROR(INDEX(Klasseliste[],MATCH(SUMPRODUCT((Klasseliste[DAG]=Klassetimeplan[[#Headers],[TIRSDAG]])*(ROUNDDOWN($B18,10)>=ROUNDDOWN(Klasseliste[STARTTIDSPUNKT],10))*($B18<=Klasseliste[SLUTTIDSPUNKT]),Klasseliste[UNIK]),Klasseliste[UNIK],0),2),0)","v":"HPE-295"},{"$f":"IFERROR(INDEX(Klasseliste[],MATCH(SUMPRODUCT((Klasseliste[DAG]=Klassetimeplan[[#Headers],[ONSDAG]])*(ROUNDDOWN($B18,10)>=ROUNDDOWN(Klasseliste[STARTTIDSPUNKT],10))*($B18<=Klasseliste[SLUTTIDSPUNKT]),Klasseliste[UNIK]),Klasseliste[UNIK],0),2),0)","v":0},{"$f":"IFERROR(INDEX(Klasseliste[],MATCH(SUMPRODUCT((Klasseliste[DAG]=Klassetimeplan[[#Headers],[TORSDAG]])*(ROUNDDOWN($B18,10)>=ROUNDDOWN(Klasseliste[STARTTIDSPUNKT],10))*($B18<=Klasseliste[SLUTTIDSPUNKT]),Klasseliste[UNIK]),Klasseliste[UNIK],0),2),0)","v":"HPE-295"},{"$f":"IFERROR(INDEX(Klasseliste[],MATCH(SUMPRODUCT((Klasseliste[DAG]=Klassetimeplan[[#Headers],[FREDAG]])*(ROUNDDOWN($B18,10)>=ROUNDDOWN(Klasseliste[STARTTIDSPUNKT],10))*($B18<=Klasseliste[SLUTTIDSPUNKT]),Klasseliste[UNIK]),Klasseliste[UNIK],0),2),0)","v":0},{"$f":"IFERROR(INDEX(Klasseliste[],MATCH(SUMPRODUCT((Klasseliste[DAG]=Klassetimeplan[[#Headers],[LØRDAG]])*(ROUNDDOWN($B18,10)>=ROUNDDOWN(Klasseliste[STARTTIDSPUNKT],10))*($B18<=Klasseliste[SLUTTIDSPUNKT]),Klasseliste[UNIK]),Klasseliste[UNIK],0),2),0)","v":0}]
[null,"11:45:00",{"$f":"IFERROR(INDEX(Klasseliste[],MATCH(SUMPRODUCT((Klasseliste[DAG]=Klassetimeplan[[#Headers],[SØNDAG]])*(ROUNDDOWN($B19,10)>=ROUNDDOWN(Klasseliste[STARTTIDSPUNKT],10))*($B19<=Klasseliste[SLUTTIDSPUNKT]),Klasseliste[UNIK]),Klasseliste[UNIK],0),2),0)","v":0},{"$f":"IFERROR(INDEX(Klasseliste[],MATCH(SUMPRODUCT((Klasseliste[DAG]=Klassetimeplan[[#Headers],[MANDAG]])*(ROUNDDOWN($B19,10)>=ROUNDDOWN(Klasseliste[STARTTIDSPUNKT],10))*($B19<=Klasseliste[SLUTTIDSPUNKT]),Klasseliste[UNIK]),Klasseliste[UNIK],0),2),0)","v":0},{"$f":"IFERROR(INDEX(Klasseliste[],MATCH(SUMPRODUCT((Klasseliste[DAG]=Klassetimeplan[[#Headers],[TIRSDAG]])*(ROUNDDOWN($B19,10)>=ROUNDDOWN(Klasseliste[STARTTIDSPUNKT],10))*($B19<=Klasseliste[SLUTTIDSPUNKT]),Klasseliste[UNIK]),Klasseliste[UNIK],0),2),0)","v":"HPE-295"},{"$f":"IFERROR(INDEX(Klasseliste[],MATCH(SUMPRODUCT((Klasseliste[DAG]=Klassetimeplan[[#Headers],[ONSDAG]])*(ROUNDDOWN($B19,10)>=ROUNDDOWN(Klasseliste[STARTTIDSPUNKT],10))*($B19<=Klasseliste[SLUTTIDSPUNKT]),Klasseliste[UNIK]),Klasseliste[UNIK],0),2),0)","v":0},{"$f":"IFERROR(INDEX(Klasseliste[],MATCH(SUMPRODUCT((Klasseliste[DAG]=Klassetimeplan[[#Headers],[TORSDAG]])*(ROUNDDOWN($B19,10)>=ROUNDDOWN(Klasseliste[STARTTIDSPUNKT],10))*($B19<=Klasseliste[SLUTTIDSPUNKT]),Klasseliste[UNIK]),Klasseliste[UNIK],0),2),0)","v":"HPE-295"},{"$f":"IFERROR(INDEX(Klasseliste[],MATCH(SUMPRODUCT((Klasseliste[DAG]=Klassetimeplan[[#Headers],[FREDAG]])*(ROUNDDOWN($B19,10)>=ROUNDDOWN(Klasseliste[STARTTIDSPUNKT],10))*($B19<=Klasseliste[SLUTTIDSPUNKT]),Klasseliste[UNIK]),Klasseliste[UNIK],0),2),0)","v":0},{"$f":"IFERROR(INDEX(Klasseliste[],MATCH(SUMPRODUCT((Klasseliste[DAG]=Klassetimeplan[[#Headers],[LØRDAG]])*(ROUNDDOWN($B19,10)>=ROUNDDOWN(Klasseliste[STARTTIDSPUNKT],10))*($B19<=Klasseliste[SLUTTIDSPUNKT]),Klasseliste[UNIK]),Klasseliste[UNIK],0),2),0)","v":0}]
[null,"12:00:00",{"$f":"IFERROR(INDEX(Klasseliste[],MATCH(SUMPRODUCT((Klasseliste[DAG]=Klassetimeplan[[#Headers],[SØNDAG]])*(ROUNDDOWN($B20,10)>=ROUNDDOWN(Klasseliste[STARTTIDSPUNKT],10))*($B20<=Klasseliste[SLUTTIDSPUNKT]),Klasseliste[UNIK]),Klasseliste[UNIK],0),2),0)","v":0},{"$f":"IFERROR(INDEX(Klasseliste[],MATCH(SUMPRODUCT((Klasseliste[DAG]=Klassetimeplan[[#Headers],[MANDAG]])*(ROUNDDOWN($B20,10)>=ROUNDDOWN(Klasseliste[STARTTIDSPUNKT],10))*($B20<=Klasseliste[SLUTTIDSPUNKT]),Klasseliste[UNIK]),Klasseliste[UNIK],0),2),0)","v":0},{"$f":"IFERROR(INDEX(Klasseliste[],MATCH(SUMPRODUCT((Klasseliste[DAG]=Klassetimeplan[[#Headers],[TIRSDAG]])*(ROUNDDOWN($B20,10)>=ROUNDDOWN(Klasseliste[STARTTIDSPUNKT],10))*($B20<=Klasseliste[SLUTTIDSPUNKT]),Klasseliste[UNIK]),Klasseliste[UNIK],0),2),0)","v":"HPE-295"},{"$f":"IFERROR(INDEX(Klasseliste[],MATCH(SUMPRODUCT((Klasseliste[DAG]=Klassetimeplan[[#Headers],[ONSDAG]])*(ROUNDDOWN($B20,10)>=ROUNDDOWN(Klasseliste[STARTTIDSPUNKT],10))*($B20<=Klasseliste[SLUTTIDSPUNKT]),Klasseliste[UNIK]),Klasseliste[UNIK],0),2),0)","v":0},{"$f":"IFERROR(INDEX(Klasseliste[],MATCH(SUMPRODUCT((Klasseliste[DAG]=Klassetimeplan[[#Headers],[TORSDAG]])*(ROUNDDOWN($B20,10)>=ROUNDDOWN(Klasseliste[STARTTIDSPUNKT],10))*($B20<=Klasseliste[SLUTTIDSPUNKT]),Klasseliste[UNIK]),Klasseliste[UNIK],0),2),0)","v":"HPE-295"},{"$f":"IFERROR(INDEX(Klasseliste[],MATCH(SUMPRODUCT((Klasseliste[DAG]=Klassetimeplan[[#Headers],[FREDAG]])*(ROUNDDOWN($B20,10)>=ROUNDDOWN(Klasseliste[STARTTIDSPUNKT],10))*($B20<=Klasseliste[SLUTTIDSPUNKT]),Klasseliste[UNIK]),Klasseliste[UNIK],0),2),0)","v":0},{"$f":"IFERROR(INDEX(Klasseliste[],MATCH(SUMPRODUCT((Klasseliste[DAG]=Klassetimeplan[[#Headers],[LØRDAG]])*(ROUNDDOWN($B20,10)>=ROUNDDOWN(Klasseliste[STARTTIDSPUNKT],10))*($B20<=Klasseliste[SLUTTIDSPUNKT]),Klasseliste[UNIK]),Klasseliste[UNIK],0),2),0)","v":0}]
[null,"12:15:00",{"$f":"IFERROR(INDEX(Klasseliste[],MATCH(SUMPRODUCT((Klasseliste[DAG]=Klassetimeplan[[#Headers],[SØNDAG]])*(ROUNDDOWN($B21,10)>=ROUNDDOWN(Klasseliste[STARTTIDSPUNKT],10))*($B21<=Klasseliste[SLUTTIDSPUNKT]),Klasseliste[UNIK]),Klasseliste[UNIK],0),2),0)","v":0},{"$f":"IFERROR(INDEX(Klasseliste[],MATCH(SUMPRODUCT((Klasseliste[DAG]=Klassetimeplan[[#Headers],[MANDAG]])*(ROUNDDOWN($B21,10)>=ROUNDDOWN(Klasseliste[STARTTIDSPUNKT],10))*($B21<=Klasseliste[SLUTTIDSPUNKT]),Klasseliste[UNIK]),Klasseliste[UNIK],0),2),0)","v":0},{"$f":"IFERROR(INDEX(Klasseliste[],MATCH(SUMPRODUCT((Klasseliste[DAG]=Klassetimeplan[[#Headers],[TIRSDAG]])*(ROUNDDOWN($B21,10)>=ROUNDDOWN(Klasseliste[STARTTIDSPUNKT],10))*($B21<=Klasseliste[SLUTTIDSPUNKT]),Klasseliste[UNIK]),Klasseliste[UNIK],0),2),0)","v":0},{"$f":"IFERROR(INDEX(Klasseliste[],MATCH(SUMPRODUCT((Klasseliste[DAG]=Klassetimeplan[[#Headers],[ONSDAG]])*(ROUNDDOWN($B21,10)>=ROUNDDOWN(Klasseliste[STARTTIDSPUNKT],10))*($B21<=Klasseliste[SLUTTIDSPUNKT]),Klasseliste[UNIK]),Klasseliste[UNIK],0),2),0)","v":0},{"$f":"IFERROR(INDEX(Klasseliste[],MATCH(SUMPRODUCT((Klasseliste[DAG]=Klassetimeplan[[#Headers],[TORSDAG]])*(ROUNDDOWN($B21,10)>=ROUNDDOWN(Klasseliste[STARTTIDSPUNKT],10))*($B21<=Klasseliste[SLUTTIDSPUNKT]),Klasseliste[UNIK]),Klasseliste[UNIK],0),2),0)","v":0},{"$f":"IFERROR(INDEX(Klasseliste[],MATCH(SUMPRODUCT((Klasseliste[DAG]=Klassetimeplan[[#Headers],[FREDAG]])*(ROUNDDOWN($B21,10)>=ROUNDDOWN(Klasseliste[STARTTIDSPUNKT],10))*($B21<=Klasseliste[SLUTTIDSPUNKT]),Klasseliste[UNIK]),Klasseliste[UNIK],0),2),0)","v":0},{"$f":"IFERROR(INDEX(Klasseliste[],MATCH(SUMPRODUCT((Klasseliste[DAG]=Klassetimeplan[[#Headers],[LØRDAG]])*(ROUNDDOWN($B21,10)>=ROUNDDOWN(Klasseliste[STARTTIDSPUNKT],10))*($B21<=Klasseliste[SLUTTIDSPUNKT]),Klasseliste[UNIK]),Klasseliste[UNIK],0),2),0)","v":0}]
[null,"12:30:00",{"$f":"IFERROR(INDEX(Klasseliste[],MATCH(SUMPRODUCT((Klasseliste[DAG]=Klassetimeplan[[#Headers],[SØNDAG]])*(ROUNDDOWN($B22,10)>=ROUNDDOWN(Klasseliste[STARTTIDSPUNKT],10))*($B22<=Klasseliste[SLUTTIDSPUNKT]),Klasseliste[UNIK]),Klasseliste[UNIK],0),2),0)","v":0},{"$f":"IFERROR(INDEX(Klasseliste[],MATCH(SUMPRODUCT((Klasseliste[DAG]=Klassetimeplan[[#Headers],[MANDAG]])*(ROUNDDOWN($B22,10)>=ROUNDDOWN(Klasseliste[STARTTIDSPUNKT],10))*($B22<=Klasseliste[SLUTTIDSPUNKT]),Klasseliste[UNIK]),Klasseliste[UNIK],0),2),0)","v":0},{"$f":"IFERROR(INDEX(Klasseliste[],MATCH(SUMPRODUCT((Klasseliste[DAG]=Klassetimeplan[[#Headers],[TIRSDAG]])*(ROUNDDOWN($B22,10)>=ROUNDDOWN(Klasseliste[STARTTIDSPUNKT],10))*($B22<=Klasseliste[SLUTTIDSPUNKT]),Klasseliste[UNIK]),Klasseliste[UNIK],0),2),0)","v":0},{"$f":"IFERROR(INDEX(Klasseliste[],MATCH(SUMPRODUCT((Klasseliste[DAG]=Klassetimeplan[[#Headers],[ONSDAG]])*(ROUNDDOWN($B22,10)>=ROUNDDOWN(Klasseliste[STARTTIDSPUNKT],10))*($B22<=Klasseliste[SLUTTIDSPUNKT]),Klasseliste[UNIK]),Klasseliste[UNIK],0),2),0)","v":0},{"$f":"IFERROR(INDEX(Klasseliste[],MATCH(SUMPRODUCT((Klasseliste[DAG]=Klassetimeplan[[#Headers],[TORSDAG]])*(ROUNDDOWN($B22,10)>=ROUNDDOWN(Klasseliste[STARTTIDSPUNKT],10))*($B22<=Klasseliste[SLUTTIDSPUNKT]),Klasseliste[UNIK]),Klasseliste[UNIK],0),2),0)","v":0},{"$f":"IFERROR(INDEX(Klasseliste[],MATCH(SUMPRODUCT((Klasseliste[DAG]=Klassetimeplan[[#Headers],[FREDAG]])*(ROUNDDOWN($B22,10)>=ROUNDDOWN(Klasseliste[STARTTIDSPUNKT],10))*($B22<=Klasseliste[SLUTTIDSPUNKT]),Klasseliste[UNIK]),Klasseliste[UNIK],0),2),0)","v":0},{"$f":"IFERROR(INDEX(Klasseliste[],MATCH(SUMPRODUCT((Klasseliste[DAG]=Klassetimeplan[[#Headers],[LØRDAG]])*(ROUNDDOWN($B22,10)>=ROUNDDOWN(Klasseliste[STARTTIDSPUNKT],10))*($B22<=Klasseliste[SLUTTIDSPUNKT]),Klasseliste[UNIK]),Klasseliste[UNIK],0),2),0)","v":0}]
[null,"12:45:00",{"$f":"IFERROR(INDEX(Klasseliste[],MATCH(SUMPRODUCT((Klasseliste[DAG]=Klassetimeplan[[#Headers],[SØNDAG]])*(ROUNDDOWN($B23,10)>=ROUNDDOWN(Klasseliste[STARTTIDSPUNKT],10))*($B23<=Klasseliste[SLUTTIDSPUNKT]),Klasseliste[UNIK]),Klasseliste[UNIK],0),2),0)","v":0},{"$f":"IFERROR(INDEX(Klasseliste[],MATCH(SUMPRODUCT((Klasseliste[DAG]=Klassetimeplan[[#Headers],[MANDAG]])*(ROUNDDOWN($B23,10)>=ROUNDDOWN(Klasseliste[STARTTIDSPUNKT],10))*($B23<=Klasseliste[SLUTTIDSPUNKT]),Klasseliste[UNIK]),Klasseliste[UNIK],0),2),0)","v":0},{"$f":"IFERROR(INDEX(Klasseliste[],MATCH(SUMPRODUCT((Klasseliste[DAG]=Klassetimeplan[[#Headers],[TIRSDAG]])*(ROUNDDOWN($B23,10)>=ROUNDDOWN(Klasseliste[STARTTIDSPUNKT],10))*($B23<=Klasseliste[SLUTTIDSPUNKT]),Klasseliste[UNIK]),Klasseliste[UNIK],0),2),0)","v":0},{"$f":"IFERROR(INDEX(Klasseliste[],MATCH(SUMPRODUCT((Klasseliste[DAG]=Klassetimeplan[[#Headers],[ONSDAG]])*(ROUNDDOWN($B23,10)>=ROUNDDOWN(Klasseliste[STARTTIDSPUNKT],10))*($B23<=Klasseliste[SLUTTIDSPUNKT]),Klasseliste[UNIK]),Klasseliste[UNIK],0),2),0)","v":0},{"$f":"IFERROR(INDEX(Klasseliste[],MATCH(SUMPRODUCT((Klasseliste[DAG]=Klassetimeplan[[#Headers],[TORSDAG]])*(ROUNDDOWN($B23,10)>=ROUNDDOWN(Klasseliste[STARTTIDSPUNKT],10))*($B23<=Klasseliste[SLUTTIDSPUNKT]),Klasseliste[UNIK]),Klasseliste[UNIK],0),2),0)","v":0},{"$f":"IFERROR(INDEX(Klasseliste[],MATCH(SUMPRODUCT((Klasseliste[DAG]=Klassetimeplan[[#Headers],[FREDAG]])*(ROUNDDOWN($B23,10)>=ROUNDDOWN(Klasseliste[STARTTIDSPUNKT],10))*($B23<=Klasseliste[SLUTTIDSPUNKT]),Klasseliste[UNIK]),Klasseliste[UNIK],0),2),0)","v":0},{"$f":"IFERROR(INDEX(Klasseliste[],MATCH(SUMPRODUCT((Klasseliste[DAG]=Klassetimeplan[[#Headers],[LØRDAG]])*(ROUNDDOWN($B23,10)>=ROUNDDOWN(Klasseliste[STARTTIDSPUNKT],10))*($B23<=Klasseliste[SLUTTIDSPUNKT]),Klasseliste[UNIK]),Klasseliste[UNIK],0),2),0)","v":0}]
[null,"13:00:00",{"$f":"IFERROR(INDEX(Klasseliste[],MATCH(SUMPRODUCT((Klasseliste[DAG]=Klassetimeplan[[#Headers],[SØNDAG]])*(ROUNDDOWN($B24,10)>=ROUNDDOWN(Klasseliste[STARTTIDSPUNKT],10))*($B24<=Klasseliste[SLUTTIDSPUNKT]),Klasseliste[UNIK]),Klasseliste[UNIK],0),2),0)","v":0},{"$f":"IFERROR(INDEX(Klasseliste[],MATCH(SUMPRODUCT((Klasseliste[DAG]=Klassetimeplan[[#Headers],[MANDAG]])*(ROUNDDOWN($B24,10)>=ROUNDDOWN(Klasseliste[STARTTIDSPUNKT],10))*($B24<=Klasseliste[SLUTTIDSPUNKT]),Klasseliste[UNIK]),Klasseliste[UNIK],0),2),0)","v":"WR-121"},{"$f":"IFERROR(INDEX(Klasseliste[],MATCH(SUMPRODUCT((Klasseliste[DAG]=Klassetimeplan[[#Headers],[TIRSDAG]])*(ROUNDDOWN($B24,10)>=ROUNDDOWN(Klasseliste[STARTTIDSPUNKT],10))*($B24<=Klasseliste[SLUTTIDSPUNKT]),Klasseliste[UNIK]),Klasseliste[UNIK],0),2),0)","v":0},{"$f":"IFERROR(INDEX(Klasseliste[],MATCH(SUMPRODUCT((Klasseliste[DAG]=Klassetimeplan[[#Headers],[ONSDAG]])*(ROUNDDOWN($B24,10)>=ROUNDDOWN(Klasseliste[STARTTIDSPUNKT],10))*($B24<=Klasseliste[SLUTTIDSPUNKT]),Klasseliste[UNIK]),Klasseliste[UNIK],0),2),0)","v":"WR-121"},{"$f":"IFERROR(INDEX(Klasseliste[],MATCH(SUMPRODUCT((Klasseliste[DAG]=Klassetimeplan[[#Headers],[TORSDAG]])*(ROUNDDOWN($B24,10)>=ROUNDDOWN(Klasseliste[STARTTIDSPUNKT],10))*($B24<=Klasseliste[SLUTTIDSPUNKT]),Klasseliste[UNIK]),Klasseliste[UNIK],0),2),0)","v":0},{"$f":"IFERROR(INDEX(Klasseliste[],MATCH(SUMPRODUCT((Klasseliste[DAG]=Klassetimeplan[[#Headers],[FREDAG]])*(ROUNDDOWN($B24,10)>=ROUNDDOWN(Klasseliste[STARTTIDSPUNKT],10))*($B24<=Klasseliste[SLUTTIDSPUNKT]),Klasseliste[UNIK]),Klasseliste[UNIK],0),2),0)","v":0},{"$f":"IFERROR(INDEX(Klasseliste[],MATCH(SUMPRODUCT((Klasseliste[DAG]=Klassetimeplan[[#Headers],[LØRDAG]])*(ROUNDDOWN($B24,10)>=ROUNDDOWN(Klasseliste[STARTTIDSPUNKT],10))*($B24<=Klasseliste[SLUTTIDSPUNKT]),Klasseliste[UNIK]),Klasseliste[UNIK],0),2),0)","v":0}]
[null,"13:15:00",{"$f":"IFERROR(INDEX(Klasseliste[],MATCH(SUMPRODUCT((Klasseliste[DAG]=Klassetimeplan[[#Headers],[SØNDAG]])*(ROUNDDOWN($B25,10)>=ROUNDDOWN(Klasseliste[STARTTIDSPUNKT],10))*($B25<=Klasseliste[SLUTTIDSPUNKT]),Klasseliste[UNIK]),Klasseliste[UNIK],0),2),0)","v":0},{"$f":"IFERROR(INDEX(Klasseliste[],MATCH(SUMPRODUCT((Klasseliste[DAG]=Klassetimeplan[[#Headers],[MANDAG]])*(ROUNDDOWN($B25,10)>=ROUNDDOWN(Klasseliste[STARTTIDSPUNKT],10))*($B25<=Klasseliste[SLUTTIDSPUNKT]),Klasseliste[UNIK]),Klasseliste[UNIK],0),2),0)","v":"WR-121"},{"$f":"IFERROR(INDEX(Klasseliste[],MATCH(SUMPRODUCT((Klasseliste[DAG]=Klassetimeplan[[#Headers],[TIRSDAG]])*(ROUNDDOWN($B25,10)>=ROUNDDOWN(Klasseliste[STARTTIDSPUNKT],10))*($B25<=Klasseliste[SLUTTIDSPUNKT]),Klasseliste[UNIK]),Klasseliste[UNIK],0),2),0)","v":0},{"$f":"IFERROR(INDEX(Klasseliste[],MATCH(SUMPRODUCT((Klasseliste[DAG]=Klassetimeplan[[#Headers],[ONSDAG]])*(ROUNDDOWN($B25,10)>=ROUNDDOWN(Klasseliste[STARTTIDSPUNKT],10))*($B25<=Klasseliste[SLUTTIDSPUNKT]),Klasseliste[UNIK]),Klasseliste[UNIK],0),2),0)","v":"WR-121"},{"$f":"IFERROR(INDEX(Klasseliste[],MATCH(SUMPRODUCT((Klasseliste[DAG]=Klassetimeplan[[#Headers],[TORSDAG]])*(ROUNDDOWN($B25,10)>=ROUNDDOWN(Klasseliste[STARTTIDSPUNKT],10))*($B25<=Klasseliste[SLUTTIDSPUNKT]),Klasseliste[UNIK]),Klasseliste[UNIK],0),2),0)","v":0},{"$f":"IFERROR(INDEX(Klasseliste[],MATCH(SUMPRODUCT((Klasseliste[DAG]=Klassetimeplan[[#Headers],[FREDAG]])*(ROUNDDOWN($B25,10)>=ROUNDDOWN(Klasseliste[STARTTIDSPUNKT],10))*($B25<=Klasseliste[SLUTTIDSPUNKT]),Klasseliste[UNIK]),Klasseliste[UNIK],0),2),0)","v":0},{"$f":"IFERROR(INDEX(Klasseliste[],MATCH(SUMPRODUCT((Klasseliste[DAG]=Klassetimeplan[[#Headers],[LØRDAG]])*(ROUNDDOWN($B25,10)>=ROUNDDOWN(Klasseliste[STARTTIDSPUNKT],10))*($B25<=Klasseliste[SLUTTIDSPUNKT]),Klasseliste[UNIK]),Klasseliste[UNIK],0),2),0)","v":0}]
[null,"13:30:00",{"$f":"IFERROR(INDEX(Klasseliste[],MATCH(SUMPRODUCT((Klasseliste[DAG]=Klassetimeplan[[#Headers],[SØNDAG]])*(ROUNDDOWN($B26,10)>=ROUNDDOWN(Klasseliste[STARTTIDSPUNKT],10))*($B26<=Klasseliste[SLUTTIDSPUNKT]),Klasseliste[UNIK]),Klasseliste[UNIK],0),2),0)","v":0},{"$f":"IFERROR(INDEX(Klasseliste[],MATCH(SUMPRODUCT((Klasseliste[DAG]=Klassetimeplan[[#Headers],[MANDAG]])*(ROUNDDOWN($B26,10)>=ROUNDDOWN(Klasseliste[STARTTIDSPUNKT],10))*($B26<=Klasseliste[SLUTTIDSPUNKT]),Klasseliste[UNIK]),Klasseliste[UNIK],0),2),0)","v":"WR-121"},{"$f":"IFERROR(INDEX(Klasseliste[],MATCH(SUMPRODUCT((Klasseliste[DAG]=Klassetimeplan[[#Headers],[TIRSDAG]])*(ROUNDDOWN($B26,10)>=ROUNDDOWN(Klasseliste[STARTTIDSPUNKT],10))*($B26<=Klasseliste[SLUTTIDSPUNKT]),Klasseliste[UNIK]),Klasseliste[UNIK],0),2),0)","v":0},{"$f":"IFERROR(INDEX(Klasseliste[],MATCH(SUMPRODUCT((Klasseliste[DAG]=Klassetimeplan[[#Headers],[ONSDAG]])*(ROUNDDOWN($B26,10)>=ROUNDDOWN(Klasseliste[STARTTIDSPUNKT],10))*($B26<=Klasseliste[SLUTTIDSPUNKT]),Klasseliste[UNIK]),Klasseliste[UNIK],0),2),0)","v":"WR-121"},{"$f":"IFERROR(INDEX(Klasseliste[],MATCH(SUMPRODUCT((Klasseliste[DAG]=Klassetimeplan[[#Headers],[TORSDAG]])*(ROUNDDOWN($B26,10)>=ROUNDDOWN(Klasseliste[STARTTIDSPUNKT],10))*($B26<=Klasseliste[SLUTTIDSPUNKT]),Klasseliste[UNIK]),Klasseliste[UNIK],0),2),0)","v":0},{"$f":"IFERROR(INDEX(Klasseliste[],MATCH(SUMPRODUCT((Klasseliste[DAG]=Klassetimeplan[[#Headers],[FREDAG]])*(ROUNDDOWN($B26,10)>=ROUNDDOWN(Klasseliste[STARTTIDSPUNKT],10))*($B26<=Klasseliste[SLUTTIDSPUNKT]),Klasseliste[UNIK]),Klasseliste[UNIK],0),2),0)","v":0},{"$f":"IFERROR(INDEX(Klasseliste[],MATCH(SUMPRODUCT((Klasseliste[DAG]=Klassetimeplan[[#Headers],[LØRDAG]])*(ROUNDDOWN($B26,10)>=ROUNDDOWN(Klasseliste[STARTTIDSPUNKT],10))*($B26<=Klasseliste[SLUTTIDSPUNKT]),Klasseliste[UNIK]),Klasseliste[UNIK],0),2),0)","v":0}]
[null,"13:45:00",{"$f":"IFERROR(INDEX(Klasseliste[],MATCH(SUMPRODUCT((Klasseliste[DAG]=Klassetimeplan[[#Headers],[SØNDAG]])*(ROUNDDOWN($B27,10)>=ROUNDDOWN(Klasseliste[STARTTIDSPUNKT],10))*($B27<=Klasseliste[SLUTTIDSPUNKT]),Klasseliste[UNIK]),Klasseliste[UNIK],0),2),0)","v":0},{"$f":"IFERROR(INDEX(Klasseliste[],MATCH(SUMPRODUCT((Klasseliste[DAG]=Klassetimeplan[[#Headers],[MANDAG]])*(ROUNDDOWN($B27,10)>=ROUNDDOWN(Klasseliste[STARTTIDSPUNKT],10))*($B27<=Klasseliste[SLUTTIDSPUNKT]),Klasseliste[UNIK]),Klasseliste[UNIK],0),2),0)","v":"WR-121"},{"$f":"IFERROR(INDEX(Klasseliste[],MATCH(SUMPRODUCT((Klasseliste[DAG]=Klassetimeplan[[#Headers],[TIRSDAG]])*(ROUNDDOWN($B27,10)>=ROUNDDOWN(Klasseliste[STARTTIDSPUNKT],10))*($B27<=Klasseliste[SLUTTIDSPUNKT]),Klasseliste[UNIK]),Klasseliste[UNIK],0),2),0)","v":0},{"$f":"IFERROR(INDEX(Klasseliste[],MATCH(SUMPRODUCT((Klasseliste[DAG]=Klassetimeplan[[#Headers],[ONSDAG]])*(ROUNDDOWN($B27,10)>=ROUNDDOWN(Klasseliste[STARTTIDSPUNKT],10))*($B27<=Klasseliste[SLUTTIDSPUNKT]),Klasseliste[UNIK]),Klasseliste[UNIK],0),2),0)","v":"WR-121"},{"$f":"IFERROR(INDEX(Klasseliste[],MATCH(SUMPRODUCT((Klasseliste[DAG]=Klassetimeplan[[#Headers],[TORSDAG]])*(ROUNDDOWN($B27,10)>=ROUNDDOWN(Klasseliste[STARTTIDSPUNKT],10))*($B27<=Klasseliste[SLUTTIDSPUNKT]),Klasseliste[UNIK]),Klasseliste[UNIK],0),2),0)","v":0},{"$f":"IFERROR(INDEX(Klasseliste[],MATCH(SUMPRODUCT((Klasseliste[DAG]=Klassetimeplan[[#Headers],[FREDAG]])*(ROUNDDOWN($B27,10)>=ROUNDDOWN(Klasseliste[STARTTIDSPUNKT],10))*($B27<=Klasseliste[SLUTTIDSPUNKT]),Klasseliste[UNIK]),Klasseliste[UNIK],0),2),0)","v":0},{"$f":"IFERROR(INDEX(Klasseliste[],MATCH(SUMPRODUCT((Klasseliste[DAG]=Klassetimeplan[[#Headers],[LØRDAG]])*(ROUNDDOWN($B27,10)>=ROUNDDOWN(Klasseliste[STARTTIDSPUNKT],10))*($B27<=Klasseliste[SLUTTIDSPUNKT]),Klasseliste[UNIK]),Klasseliste[UNIK],0),2),0)","v":0}]
[null,"14:00:00",{"$f":"IFERROR(INDEX(Klasseliste[],MATCH(SUMPRODUCT((Klasseliste[DAG]=Klassetimeplan[[#Headers],[SØNDAG]])*(ROUNDDOWN($B28,10)>=ROUNDDOWN(Klasseliste[STARTTIDSPUNKT],10))*($B28<=Klasseliste[SLUTTIDSPUNKT]),Klasseliste[UNIK]),Klasseliste[UNIK],0),2),0)","v":0},{"$f":"IFERROR(INDEX(Klasseliste[],MATCH(SUMPRODUCT((Klasseliste[DAG]=Klassetimeplan[[#Headers],[MANDAG]])*(ROUNDDOWN($B28,10)>=ROUNDDOWN(Klasseliste[STARTTIDSPUNKT],10))*($B28<=Klasseliste[SLUTTIDSPUNKT]),Klasseliste[UNIK]),Klasseliste[UNIK],0),2),0)","v":"WR-121"},{"$f":"IFERROR(INDEX(Klasseliste[],MATCH(SUMPRODUCT((Klasseliste[DAG]=Klassetimeplan[[#Headers],[TIRSDAG]])*(ROUNDDOWN($B28,10)>=ROUNDDOWN(Klasseliste[STARTTIDSPUNKT],10))*($B28<=Klasseliste[SLUTTIDSPUNKT]),Klasseliste[UNIK]),Klasseliste[UNIK],0),2),0)","v":0},{"$f":"IFERROR(INDEX(Klasseliste[],MATCH(SUMPRODUCT((Klasseliste[DAG]=Klassetimeplan[[#Headers],[ONSDAG]])*(ROUNDDOWN($B28,10)>=ROUNDDOWN(Klasseliste[STARTTIDSPUNKT],10))*($B28<=Klasseliste[SLUTTIDSPUNKT]),Klasseliste[UNIK]),Klasseliste[UNIK],0),2),0)","v":"WR-121"},{"$f":"IFERROR(INDEX(Klasseliste[],MATCH(SUMPRODUCT((Klasseliste[DAG]=Klassetimeplan[[#Headers],[TORSDAG]])*(ROUNDDOWN($B28,10)>=ROUNDDOWN(Klasseliste[STARTTIDSPUNKT],10))*($B28<=Klasseliste[SLUTTIDSPUNKT]),Klasseliste[UNIK]),Klasseliste[UNIK],0),2),0)","v":0},{"$f":"IFERROR(INDEX(Klasseliste[],MATCH(SUMPRODUCT((Klasseliste[DAG]=Klassetimeplan[[#Headers],[FREDAG]])*(ROUNDDOWN($B28,10)>=ROUNDDOWN(Klasseliste[STARTTIDSPUNKT],10))*($B28<=Klasseliste[SLUTTIDSPUNKT]),Klasseliste[UNIK]),Klasseliste[UNIK],0),2),0)","v":0},{"$f":"IFERROR(INDEX(Klasseliste[],MATCH(SUMPRODUCT((Klasseliste[DAG]=Klassetimeplan[[#Headers],[LØRDAG]])*(ROUNDDOWN($B28,10)>=ROUNDDOWN(Klasseliste[STARTTIDSPUNKT],10))*($B28<=Klasseliste[SLUTTIDSPUNKT]),Klasseliste[UNIK]),Klasseliste[UNIK],0),2),0)","v":0}]
[null,"14:15:00",{"$f":"IFERROR(INDEX(Klasseliste[],MATCH(SUMPRODUCT((Klasseliste[DAG]=Klassetimeplan[[#Headers],[SØNDAG]])*(ROUNDDOWN($B29,10)>=ROUNDDOWN(Klasseliste[STARTTIDSPUNKT],10))*($B29<=Klasseliste[SLUTTIDSPUNKT]),Klasseliste[UNIK]),Klasseliste[UNIK],0),2),0)","v":0},{"$f":"IFERROR(INDEX(Klasseliste[],MATCH(SUMPRODUCT((Klasseliste[DAG]=Klassetimeplan[[#Headers],[MANDAG]])*(ROUNDDOWN($B29,10)>=ROUNDDOWN(Klasseliste[STARTTIDSPUNKT],10))*($B29<=Klasseliste[SLUTTIDSPUNKT]),Klasseliste[UNIK]),Klasseliste[UNIK],0),2),0)","v":0},{"$f":"IFERROR(INDEX(Klasseliste[],MATCH(SUMPRODUCT((Klasseliste[DAG]=Klassetimeplan[[#Headers],[TIRSDAG]])*(ROUNDDOWN($B29,10)>=ROUNDDOWN(Klasseliste[STARTTIDSPUNKT],10))*($B29<=Klasseliste[SLUTTIDSPUNKT]),Klasseliste[UNIK]),Klasseliste[UNIK],0),2),0)","v":0},{"$f":"IFERROR(INDEX(Klasseliste[],MATCH(SUMPRODUCT((Klasseliste[DAG]=Klassetimeplan[[#Headers],[ONSDAG]])*(ROUNDDOWN($B29,10)>=ROUNDDOWN(Klasseliste[STARTTIDSPUNKT],10))*($B29<=Klasseliste[SLUTTIDSPUNKT]),Klasseliste[UNIK]),Klasseliste[UNIK],0),2),0)","v":0},{"$f":"IFERROR(INDEX(Klasseliste[],MATCH(SUMPRODUCT((Klasseliste[DAG]=Klassetimeplan[[#Headers],[TORSDAG]])*(ROUNDDOWN($B29,10)>=ROUNDDOWN(Klasseliste[STARTTIDSPUNKT],10))*($B29<=Klasseliste[SLUTTIDSPUNKT]),Klasseliste[UNIK]),Klasseliste[UNIK],0),2),0)","v":0},{"$f":"IFERROR(INDEX(Klasseliste[],MATCH(SUMPRODUCT((Klasseliste[DAG]=Klassetimeplan[[#Headers],[FREDAG]])*(ROUNDDOWN($B29,10)>=ROUNDDOWN(Klasseliste[STARTTIDSPUNKT],10))*($B29<=Klasseliste[SLUTTIDSPUNKT]),Klasseliste[UNIK]),Klasseliste[UNIK],0),2),0)","v":0},{"$f":"IFERROR(INDEX(Klasseliste[],MATCH(SUMPRODUCT((Klasseliste[DAG]=Klassetimeplan[[#Headers],[LØRDAG]])*(ROUNDDOWN($B29,10)>=ROUNDDOWN(Klasseliste[STARTTIDSPUNKT],10))*($B29<=Klasseliste[SLUTTIDSPUNKT]),Klasseliste[UNIK]),Klasseliste[UNIK],0),2),0)","v":0}]
[null,"14:30:00",{"$f":"IFERROR(INDEX(Klasseliste[],MATCH(SUMPRODUCT((Klasseliste[DAG]=Klassetimeplan[[#Headers],[SØNDAG]])*(ROUNDDOWN($B30,10)>=ROUNDDOWN(Klasseliste[STARTTIDSPUNKT],10))*($B30<=Klasseliste[SLUTTIDSPUNKT]),Klasseliste[UNIK]),Klasseliste[UNIK],0),2),0)","v":0},{"$f":"IFERROR(INDEX(Klasseliste[],MATCH(SUMPRODUCT((Klasseliste[DAG]=Klassetimeplan[[#Headers],[MANDAG]])*(ROUNDDOWN($B30,10)>=ROUNDDOWN(Klasseliste[STARTTIDSPUNKT],10))*($B30<=Klasseliste[SLUTTIDSPUNKT]),Klasseliste[UNIK]),Klasseliste[UNIK],0),2),0)","v":0},{"$f":"IFERROR(INDEX(Klasseliste[],MATCH(SUMPRODUCT((Klasseliste[DAG]=Klassetimeplan[[#Headers],[TIRSDAG]])*(ROUNDDOWN($B30,10)>=ROUNDDOWN(Klasseliste[STARTTIDSPUNKT],10))*($B30<=Klasseliste[SLUTTIDSPUNKT]),Klasseliste[UNIK]),Klasseliste[UNIK],0),2),0)","v":0},{"$f":"IFERROR(INDEX(Klasseliste[],MATCH(SUMPRODUCT((Klasseliste[DAG]=Klassetimeplan[[#Headers],[ONSDAG]])*(ROUNDDOWN($B30,10)>=ROUNDDOWN(Klasseliste[STARTTIDSPUNKT],10))*($B30<=Klasseliste[SLUTTIDSPUNKT]),Klasseliste[UNIK]),Klasseliste[UNIK],0),2),0)","v":0},{"$f":"IFERROR(INDEX(Klasseliste[],MATCH(SUMPRODUCT((Klasseliste[DAG]=Klassetimeplan[[#Headers],[TORSDAG]])*(ROUNDDOWN($B30,10)>=ROUNDDOWN(Klasseliste[STARTTIDSPUNKT],10))*($B30<=Klasseliste[SLUTTIDSPUNKT]),Klasseliste[UNIK]),Klasseliste[UNIK],0),2),0)","v":0},{"$f":"IFERROR(INDEX(Klasseliste[],MATCH(SUMPRODUCT((Klasseliste[DAG]=Klassetimeplan[[#Headers],[FREDAG]])*(ROUNDDOWN($B30,10)>=ROUNDDOWN(Klasseliste[STARTTIDSPUNKT],10))*($B30<=Klasseliste[SLUTTIDSPUNKT]),Klasseliste[UNIK]),Klasseliste[UNIK],0),2),0)","v":0},{"$f":"IFERROR(INDEX(Klasseliste[],MATCH(SUMPRODUCT((Klasseliste[DAG]=Klassetimeplan[[#Headers],[LØRDAG]])*(ROUNDDOWN($B30,10)>=ROUNDDOWN(Klasseliste[STARTTIDSPUNKT],10))*($B30<=Klasseliste[SLUTTIDSPUNKT]),Klasseliste[UNIK]),Klasseliste[UNIK],0),2),0)","v":0}]
[null,"14:45:00",{"$f":"IFERROR(INDEX(Klasseliste[],MATCH(SUMPRODUCT((Klasseliste[DAG]=Klassetimeplan[[#Headers],[SØNDAG]])*(ROUNDDOWN($B31,10)>=ROUNDDOWN(Klasseliste[STARTTIDSPUNKT],10))*($B31<=Klasseliste[SLUTTIDSPUNKT]),Klasseliste[UNIK]),Klasseliste[UNIK],0),2),0)","v":0},{"$f":"IFERROR(INDEX(Klasseliste[],MATCH(SUMPRODUCT((Klasseliste[DAG]=Klassetimeplan[[#Headers],[MANDAG]])*(ROUNDDOWN($B31,10)>=ROUNDDOWN(Klasseliste[STARTTIDSPUNKT],10))*($B31<=Klasseliste[SLUTTIDSPUNKT]),Klasseliste[UNIK]),Klasseliste[UNIK],0),2),0)","v":0},{"$f":"IFERROR(INDEX(Klasseliste[],MATCH(SUMPRODUCT((Klasseliste[DAG]=Klassetimeplan[[#Headers],[TIRSDAG]])*(ROUNDDOWN($B31,10)>=ROUNDDOWN(Klasseliste[STARTTIDSPUNKT],10))*($B31<=Klasseliste[SLUTTIDSPUNKT]),Klasseliste[UNIK]),Klasseliste[UNIK],0),2),0)","v":0},{"$f":"IFERROR(INDEX(Klasseliste[],MATCH(SUMPRODUCT((Klasseliste[DAG]=Klassetimeplan[[#Headers],[ONSDAG]])*(ROUNDDOWN($B31,10)>=ROUNDDOWN(Klasseliste[STARTTIDSPUNKT],10))*($B31<=Klasseliste[SLUTTIDSPUNKT]),Klasseliste[UNIK]),Klasseliste[UNIK],0),2),0)","v":0},{"$f":"IFERROR(INDEX(Klasseliste[],MATCH(SUMPRODUCT((Klasseliste[DAG]=Klassetimeplan[[#Headers],[TORSDAG]])*(ROUNDDOWN($B31,10)>=ROUNDDOWN(Klasseliste[STARTTIDSPUNKT],10))*($B31<=Klasseliste[SLUTTIDSPUNKT]),Klasseliste[UNIK]),Klasseliste[UNIK],0),2),0)","v":0},{"$f":"IFERROR(INDEX(Klasseliste[],MATCH(SUMPRODUCT((Klasseliste[DAG]=Klassetimeplan[[#Headers],[FREDAG]])*(ROUNDDOWN($B31,10)>=ROUNDDOWN(Klasseliste[STARTTIDSPUNKT],10))*($B31<=Klasseliste[SLUTTIDSPUNKT]),Klasseliste[UNIK]),Klasseliste[UNIK],0),2),0)","v":0},{"$f":"IFERROR(INDEX(Klasseliste[],MATCH(SUMPRODUCT((Klasseliste[DAG]=Klassetimeplan[[#Headers],[LØRDAG]])*(ROUNDDOWN($B31,10)>=ROUNDDOWN(Klasseliste[STARTTIDSPUNKT],10))*($B31<=Klasseliste[SLUTTIDSPUNKT]),Klasseliste[UNIK]),Klasseliste[UNIK],0),2),0)","v":0}]
[null,"15:00:00",{"$f":"IFERROR(INDEX(Klasseliste[],MATCH(SUMPRODUCT((Klasseliste[DAG]=Klassetimeplan[[#Headers],[SØNDAG]])*(ROUNDDOWN($B32,10)>=ROUNDDOWN(Klasseliste[STARTTIDSPUNKT],10))*($B32<=Klasseliste[SLUTTIDSPUNKT]),Klasseliste[UNIK]),Klasseliste[UNIK],0),2),0)","v":0},{"$f":"IFERROR(INDEX(Klasseliste[],MATCH(SUMPRODUCT((Klasseliste[DAG]=Klassetimeplan[[#Headers],[MANDAG]])*(ROUNDDOWN($B32,10)>=ROUNDDOWN(Klasseliste[STARTTIDSPUNKT],10))*($B32<=Klasseliste[SLUTTIDSPUNKT]),Klasseliste[UNIK]),Klasseliste[UNIK],0),2),0)","v":0},{"$f":"IFERROR(INDEX(Klasseliste[],MATCH(SUMPRODUCT((Klasseliste[DAG]=Klassetimeplan[[#Headers],[TIRSDAG]])*(ROUNDDOWN($B32,10)>=ROUNDDOWN(Klasseliste[STARTTIDSPUNKT],10))*($B32<=Klasseliste[SLUTTIDSPUNKT]),Klasseliste[UNIK]),Klasseliste[UNIK],0),2),0)","v":0},{"$f":"IFERROR(INDEX(Klasseliste[],MATCH(SUMPRODUCT((Klasseliste[DAG]=Klassetimeplan[[#Headers],[ONSDAG]])*(ROUNDDOWN($B32,10)>=ROUNDDOWN(Klasseliste[STARTTIDSPUNKT],10))*($B32<=Klasseliste[SLUTTIDSPUNKT]),Klasseliste[UNIK]),Klasseliste[UNIK],0),2),0)","v":0},{"$f":"IFERROR(INDEX(Klasseliste[],MATCH(SUMPRODUCT((Klasseliste[DAG]=Klassetimeplan[[#Headers],[TORSDAG]])*(ROUNDDOWN($B32,10)>=ROUNDDOWN(Klasseliste[STARTTIDSPUNKT],10))*($B32<=Klasseliste[SLUTTIDSPUNKT]),Klasseliste[UNIK]),Klasseliste[UNIK],0),2),0)","v":0},{"$f":"IFERROR(INDEX(Klasseliste[],MATCH(SUMPRODUCT((Klasseliste[DAG]=Klassetimeplan[[#Headers],[FREDAG]])*(ROUNDDOWN($B32,10)>=ROUNDDOWN(Klasseliste[STARTTIDSPUNKT],10))*($B32<=Klasseliste[SLUTTIDSPUNKT]),Klasseliste[UNIK]),Klasseliste[UNIK],0),2),0)","v":0},{"$f":"IFERROR(INDEX(Klasseliste[],MATCH(SUMPRODUCT((Klasseliste[DAG]=Klassetimeplan[[#Headers],[LØRDAG]])*(ROUNDDOWN($B32,10)>=ROUNDDOWN(Klasseliste[STARTTIDSPUNKT],10))*($B32<=Klasseliste[SLUTTIDSPUNKT]),Klasseliste[UNIK]),Klasseliste[UNIK],0),2),0)","v":0}]
[null,"15:15:00",{"$f":"IFERROR(INDEX(Klasseliste[],MATCH(SUMPRODUCT((Klasseliste[DAG]=Klassetimeplan[[#Headers],[SØNDAG]])*(ROUNDDOWN($B33,10)>=ROUNDDOWN(Klasseliste[STARTTIDSPUNKT],10))*($B33<=Klasseliste[SLUTTIDSPUNKT]),Klasseliste[UNIK]),Klasseliste[UNIK],0),2),0)","v":0},{"$f":"IFERROR(INDEX(Klasseliste[],MATCH(SUMPRODUCT((Klasseliste[DAG]=Klassetimeplan[[#Headers],[MANDAG]])*(ROUNDDOWN($B33,10)>=ROUNDDOWN(Klasseliste[STARTTIDSPUNKT],10))*($B33<=Klasseliste[SLUTTIDSPUNKT]),Klasseliste[UNIK]),Klasseliste[UNIK],0),2),0)","v":0},{"$f":"IFERROR(INDEX(Klasseliste[],MATCH(SUMPRODUCT((Klasseliste[DAG]=Klassetimeplan[[#Headers],[TIRSDAG]])*(ROUNDDOWN($B33,10)>=ROUNDDOWN(Klasseliste[STARTTIDSPUNKT],10))*($B33<=Klasseliste[SLUTTIDSPUNKT]),Klasseliste[UNIK]),Klasseliste[UNIK],0),2),0)","v":0},{"$f":"IFERROR(INDEX(Klasseliste[],MATCH(SUMPRODUCT((Klasseliste[DAG]=Klassetimeplan[[#Headers],[ONSDAG]])*(ROUNDDOWN($B33,10)>=ROUNDDOWN(Klasseliste[STARTTIDSPUNKT],10))*($B33<=Klasseliste[SLUTTIDSPUNKT]),Klasseliste[UNIK]),Klasseliste[UNIK],0),2),0)","v":0},{"$f":"IFERROR(INDEX(Klasseliste[],MATCH(SUMPRODUCT((Klasseliste[DAG]=Klassetimeplan[[#Headers],[TORSDAG]])*(ROUNDDOWN($B33,10)>=ROUNDDOWN(Klasseliste[STARTTIDSPUNKT],10))*($B33<=Klasseliste[SLUTTIDSPUNKT]),Klasseliste[UNIK]),Klasseliste[UNIK],0),2),0)","v":0},{"$f":"IFERROR(INDEX(Klasseliste[],MATCH(SUMPRODUCT((Klasseliste[DAG]=Klassetimeplan[[#Headers],[FREDAG]])*(ROUNDDOWN($B33,10)>=ROUNDDOWN(Klasseliste[STARTTIDSPUNKT],10))*($B33<=Klasseliste[SLUTTIDSPUNKT]),Klasseliste[UNIK]),Klasseliste[UNIK],0),2),0)","v":0},{"$f":"IFERROR(INDEX(Klasseliste[],MATCH(SUMPRODUCT((Klasseliste[DAG]=Klassetimeplan[[#Headers],[LØRDAG]])*(ROUNDDOWN($B33,10)>=ROUNDDOWN(Klasseliste[STARTTIDSPUNKT],10))*($B33<=Klasseliste[SLUTTIDSPUNKT]),Klasseliste[UNIK]),Klasseliste[UNIK],0),2),0)","v":0}]
[null,"15:30:00",{"$f":"IFERROR(INDEX(Klasseliste[],MATCH(SUMPRODUCT((Klasseliste[DAG]=Klassetimeplan[[#Headers],[SØNDAG]])*(ROUNDDOWN($B34,10)>=ROUNDDOWN(Klasseliste[STARTTIDSPUNKT],10))*($B34<=Klasseliste[SLUTTIDSPUNKT]),Klasseliste[UNIK]),Klasseliste[UNIK],0),2),0)","v":0},{"$f":"IFERROR(INDEX(Klasseliste[],MATCH(SUMPRODUCT((Klasseliste[DAG]=Klassetimeplan[[#Headers],[MANDAG]])*(ROUNDDOWN($B34,10)>=ROUNDDOWN(Klasseliste[STARTTIDSPUNKT],10))*($B34<=Klasseliste[SLUTTIDSPUNKT]),Klasseliste[UNIK]),Klasseliste[UNIK],0),2),0)","v":0},{"$f":"IFERROR(INDEX(Klasseliste[],MATCH(SUMPRODUCT((Klasseliste[DAG]=Klassetimeplan[[#Headers],[TIRSDAG]])*(ROUNDDOWN($B34,10)>=ROUNDDOWN(Klasseliste[STARTTIDSPUNKT],10))*($B34<=Klasseliste[SLUTTIDSPUNKT]),Klasseliste[UNIK]),Klasseliste[UNIK],0),2),0)","v":0},{"$f":"IFERROR(INDEX(Klasseliste[],MATCH(SUMPRODUCT((Klasseliste[DAG]=Klassetimeplan[[#Headers],[ONSDAG]])*(ROUNDDOWN($B34,10)>=ROUNDDOWN(Klasseliste[STARTTIDSPUNKT],10))*($B34<=Klasseliste[SLUTTIDSPUNKT]),Klasseliste[UNIK]),Klasseliste[UNIK],0),2),0)","v":0},{"$f":"IFERROR(INDEX(Klasseliste[],MATCH(SUMPRODUCT((Klasseliste[DAG]=Klassetimeplan[[#Headers],[TORSDAG]])*(ROUNDDOWN($B34,10)>=ROUNDDOWN(Klasseliste[STARTTIDSPUNKT],10))*($B34<=Klasseliste[SLUTTIDSPUNKT]),Klasseliste[UNIK]),Klasseliste[UNIK],0),2),0)","v":0},{"$f":"IFERROR(INDEX(Klasseliste[],MATCH(SUMPRODUCT((Klasseliste[DAG]=Klassetimeplan[[#Headers],[FREDAG]])*(ROUNDDOWN($B34,10)>=ROUNDDOWN(Klasseliste[STARTTIDSPUNKT],10))*($B34<=Klasseliste[SLUTTIDSPUNKT]),Klasseliste[UNIK]),Klasseliste[UNIK],0),2),0)","v":0},{"$f":"IFERROR(INDEX(Klasseliste[],MATCH(SUMPRODUCT((Klasseliste[DAG]=Klassetimeplan[[#Headers],[LØRDAG]])*(ROUNDDOWN($B34,10)>=ROUNDDOWN(Klasseliste[STARTTIDSPUNKT],10))*($B34<=Klasseliste[SLUTTIDSPUNKT]),Klasseliste[UNIK]),Klasseliste[UNIK],0),2),0)","v":0}]
[null,"15:45:00",{"$f":"IFERROR(INDEX(Klasseliste[],MATCH(SUMPRODUCT((Klasseliste[DAG]=Klassetimeplan[[#Headers],[SØNDAG]])*(ROUNDDOWN($B35,10)>=ROUNDDOWN(Klasseliste[STARTTIDSPUNKT],10))*($B35<=Klasseliste[SLUTTIDSPUNKT]),Klasseliste[UNIK]),Klasseliste[UNIK],0),2),0)","v":0},{"$f":"IFERROR(INDEX(Klasseliste[],MATCH(SUMPRODUCT((Klasseliste[DAG]=Klassetimeplan[[#Headers],[MANDAG]])*(ROUNDDOWN($B35,10)>=ROUNDDOWN(Klasseliste[STARTTIDSPUNKT],10))*($B35<=Klasseliste[SLUTTIDSPUNKT]),Klasseliste[UNIK]),Klasseliste[UNIK],0),2),0)","v":0},{"$f":"IFERROR(INDEX(Klasseliste[],MATCH(SUMPRODUCT((Klasseliste[DAG]=Klassetimeplan[[#Headers],[TIRSDAG]])*(ROUNDDOWN($B35,10)>=ROUNDDOWN(Klasseliste[STARTTIDSPUNKT],10))*($B35<=Klasseliste[SLUTTIDSPUNKT]),Klasseliste[UNIK]),Klasseliste[UNIK],0),2),0)","v":0},{"$f":"IFERROR(INDEX(Klasseliste[],MATCH(SUMPRODUCT((Klasseliste[DAG]=Klassetimeplan[[#Headers],[ONSDAG]])*(ROUNDDOWN($B35,10)>=ROUNDDOWN(Klasseliste[STARTTIDSPUNKT],10))*($B35<=Klasseliste[SLUTTIDSPUNKT]),Klasseliste[UNIK]),Klasseliste[UNIK],0),2),0)","v":0},{"$f":"IFERROR(INDEX(Klasseliste[],MATCH(SUMPRODUCT((Klasseliste[DAG]=Klassetimeplan[[#Headers],[TORSDAG]])*(ROUNDDOWN($B35,10)>=ROUNDDOWN(Klasseliste[STARTTIDSPUNKT],10))*($B35<=Klasseliste[SLUTTIDSPUNKT]),Klasseliste[UNIK]),Klasseliste[UNIK],0),2),0)","v":0},{"$f":"IFERROR(INDEX(Klasseliste[],MATCH(SUMPRODUCT((Klasseliste[DAG]=Klassetimeplan[[#Headers],[FREDAG]])*(ROUNDDOWN($B35,10)>=ROUNDDOWN(Klasseliste[STARTTIDSPUNKT],10))*($B35<=Klasseliste[SLUTTIDSPUNKT]),Klasseliste[UNIK]),Klasseliste[UNIK],0),2),0)","v":0},{"$f":"IFERROR(INDEX(Klasseliste[],MATCH(SUMPRODUCT((Klasseliste[DAG]=Klassetimeplan[[#Headers],[LØRDAG]])*(ROUNDDOWN($B35,10)>=ROUNDDOWN(Klasseliste[STARTTIDSPUNKT],10))*($B35<=Klasseliste[SLUTTIDSPUNKT]),Klasseliste[UNIK]),Klasseliste[UNIK],0),2),0)","v":0}]
[null,"16:00:00",{"$f":"IFERROR(INDEX(Klasseliste[],MATCH(SUMPRODUCT((Klasseliste[DAG]=Klassetimeplan[[#Headers],[SØNDAG]])*(ROUNDDOWN($B36,10)>=ROUNDDOWN(Klasseliste[STARTTIDSPUNKT],10))*($B36<=Klasseliste[SLUTTIDSPUNKT]),Klasseliste[UNIK]),Klasseliste[UNIK],0),2),0)","v":0},{"$f":"IFERROR(INDEX(Klasseliste[],MATCH(SUMPRODUCT((Klasseliste[DAG]=Klassetimeplan[[#Headers],[MANDAG]])*(ROUNDDOWN($B36,10)>=ROUNDDOWN(Klasseliste[STARTTIDSPUNKT],10))*($B36<=Klasseliste[SLUTTIDSPUNKT]),Klasseliste[UNIK]),Klasseliste[UNIK],0),2),0)","v":"SP-111"},{"$f":"IFERROR(INDEX(Klasseliste[],MATCH(SUMPRODUCT((Klasseliste[DAG]=Klassetimeplan[[#Headers],[TIRSDAG]])*(ROUNDDOWN($B36,10)>=ROUNDDOWN(Klasseliste[STARTTIDSPUNKT],10))*($B36<=Klasseliste[SLUTTIDSPUNKT]),Klasseliste[UNIK]),Klasseliste[UNIK],0),2),0)","v":0},{"$f":"IFERROR(INDEX(Klasseliste[],MATCH(SUMPRODUCT((Klasseliste[DAG]=Klassetimeplan[[#Headers],[ONSDAG]])*(ROUNDDOWN($B36,10)>=ROUNDDOWN(Klasseliste[STARTTIDSPUNKT],10))*($B36<=Klasseliste[SLUTTIDSPUNKT]),Klasseliste[UNIK]),Klasseliste[UNIK],0),2),0)","v":0},{"$f":"IFERROR(INDEX(Klasseliste[],MATCH(SUMPRODUCT((Klasseliste[DAG]=Klassetimeplan[[#Headers],[TORSDAG]])*(ROUNDDOWN($B36,10)>=ROUNDDOWN(Klasseliste[STARTTIDSPUNKT],10))*($B36<=Klasseliste[SLUTTIDSPUNKT]),Klasseliste[UNIK]),Klasseliste[UNIK],0),2),0)","v":0},{"$f":"IFERROR(INDEX(Klasseliste[],MATCH(SUMPRODUCT((Klasseliste[DAG]=Klassetimeplan[[#Headers],[FREDAG]])*(ROUNDDOWN($B36,10)>=ROUNDDOWN(Klasseliste[STARTTIDSPUNKT],10))*($B36<=Klasseliste[SLUTTIDSPUNKT]),Klasseliste[UNIK]),Klasseliste[UNIK],0),2),0)","v":0},{"$f":"IFERROR(INDEX(Klasseliste[],MATCH(SUMPRODUCT((Klasseliste[DAG]=Klassetimeplan[[#Headers],[LØRDAG]])*(ROUNDDOWN($B36,10)>=ROUNDDOWN(Klasseliste[STARTTIDSPUNKT],10))*($B36<=Klasseliste[SLUTTIDSPUNKT]),Klasseliste[UNIK]),Klasseliste[UNIK],0),2),0)","v":0}]
[null,{"$f":"B36+Økning","v":"16:15:00"},{"$f":"IFERROR(INDEX(Klasseliste[],MATCH(SUMPRODUCT((Klasseliste[DAG]=Klassetimeplan[[#Headers],[SØNDAG]])*(ROUNDDOWN($B37,10)>=ROUNDDOWN(Klasseliste[STARTTIDSPUNKT],10))*($B37<=Klasseliste[SLUTTIDSPUNKT]),Klasseliste[UNIK]),Klasseliste[UNIK],0),2),0)","v":0},{"$f":"IFERROR(INDEX(Klasseliste[],MATCH(SUMPRODUCT((Klasseliste[DAG]=Klassetimeplan[[#Headers],[MANDAG]])*(ROUNDDOWN($B37,10)>=ROUNDDOWN(Klasseliste[STARTTIDSPUNKT],10))*($B37<=Klasseliste[SLUTTIDSPUNKT]),Klasseliste[UNIK]),Klasseliste[UNIK],0),2),0)","v":"SP-111"},{"$f":"IFERROR(INDEX(Klasseliste[],MATCH(SUMPRODUCT((Klasseliste[DAG]=Klassetimeplan[[#Headers],[TIRSDAG]])*(ROUNDDOWN($B37,10)>=ROUNDDOWN(Klasseliste[STARTTIDSPUNKT],10))*($B37<=Klasseliste[SLUTTIDSPUNKT]),Klasseliste[UNIK]),Klasseliste[UNIK],0),2),0)","v":0},{"$f":"IFERROR(INDEX(Klasseliste[],MATCH(SUMPRODUCT((Klasseliste[DAG]=Klassetimeplan[[#Headers],[ONSDAG]])*(ROUNDDOWN($B37,10)>=ROUNDDOWN(Klasseliste[STARTTIDSPUNKT],10))*($B37<=Klasseliste[SLUTTIDSPUNKT]),Klasseliste[UNIK]),Klasseliste[UNIK],0),2),0)","v":0},{"$f":"IFERROR(INDEX(Klasseliste[],MATCH(SUMPRODUCT((Klasseliste[DAG]=Klassetimeplan[[#Headers],[TORSDAG]])*(ROUNDDOWN($B37,10)>=ROUNDDOWN(Klasseliste[STARTTIDSPUNKT],10))*($B37<=Klasseliste[SLUTTIDSPUNKT]),Klasseliste[UNIK]),Klasseliste[UNIK],0),2),0)","v":0},{"$f":"IFERROR(INDEX(Klasseliste[],MATCH(SUMPRODUCT((Klasseliste[DAG]=Klassetimeplan[[#Headers],[FREDAG]])*(ROUNDDOWN($B37,10)>=ROUNDDOWN(Klasseliste[STARTTIDSPUNKT],10))*($B37<=Klasseliste[SLUTTIDSPUNKT]),Klasseliste[UNIK]),Klasseliste[UNIK],0),2),0)","v":0},{"$f":"IFERROR(INDEX(Klasseliste[],MATCH(SUMPRODUCT((Klasseliste[DAG]=Klassetimeplan[[#Headers],[LØRDAG]])*(ROUNDDOWN($B37,10)>=ROUNDDOWN(Klasseliste[STARTTIDSPUNKT],10))*($B37<=Klasseliste[SLUTTIDSPUNKT]),Klasseliste[UNIK]),Klasseliste[UNIK],0),2),0)","v":0}]
[null,"16:30:00",{"$f":"IFERROR(INDEX(Klasseliste[],MATCH(SUMPRODUCT((Klasseliste[DAG]=Klassetimeplan[[#Headers],[SØNDAG]])*(ROUNDDOWN($B38,10)>=ROUNDDOWN(Klasseliste[STARTTIDSPUNKT],10))*($B38<=Klasseliste[SLUTTIDSPUNKT]),Klasseliste[UNIK]),Klasseliste[UNIK],0),2),0)","v":0},{"$f":"IFERROR(INDEX(Klasseliste[],MATCH(SUMPRODUCT((Klasseliste[DAG]=Klassetimeplan[[#Headers],[MANDAG]])*(ROUNDDOWN($B38,10)>=ROUNDDOWN(Klasseliste[STARTTIDSPUNKT],10))*($B38<=Klasseliste[SLUTTIDSPUNKT]),Klasseliste[UNIK]),Klasseliste[UNIK],0),2),0)","v":"SP-111"},{"$f":"IFERROR(INDEX(Klasseliste[],MATCH(SUMPRODUCT((Klasseliste[DAG]=Klassetimeplan[[#Headers],[TIRSDAG]])*(ROUNDDOWN($B38,10)>=ROUNDDOWN(Klasseliste[STARTTIDSPUNKT],10))*($B38<=Klasseliste[SLUTTIDSPUNKT]),Klasseliste[UNIK]),Klasseliste[UNIK],0),2),0)","v":0},{"$f":"IFERROR(INDEX(Klasseliste[],MATCH(SUMPRODUCT((Klasseliste[DAG]=Klassetimeplan[[#Headers],[ONSDAG]])*(ROUNDDOWN($B38,10)>=ROUNDDOWN(Klasseliste[STARTTIDSPUNKT],10))*($B38<=Klasseliste[SLUTTIDSPUNKT]),Klasseliste[UNIK]),Klasseliste[UNIK],0),2),0)","v":0},{"$f":"IFERROR(INDEX(Klasseliste[],MATCH(SUMPRODUCT((Klasseliste[DAG]=Klassetimeplan[[#Headers],[TORSDAG]])*(ROUNDDOWN($B38,10)>=ROUNDDOWN(Klasseliste[STARTTIDSPUNKT],10))*($B38<=Klasseliste[SLUTTIDSPUNKT]),Klasseliste[UNIK]),Klasseliste[UNIK],0),2),0)","v":0},{"$f":"IFERROR(INDEX(Klasseliste[],MATCH(SUMPRODUCT((Klasseliste[DAG]=Klassetimeplan[[#Headers],[FREDAG]])*(ROUNDDOWN($B38,10)>=ROUNDDOWN(Klasseliste[STARTTIDSPUNKT],10))*($B38<=Klasseliste[SLUTTIDSPUNKT]),Klasseliste[UNIK]),Klasseliste[UNIK],0),2),0)","v":0},{"$f":"IFERROR(INDEX(Klasseliste[],MATCH(SUMPRODUCT((Klasseliste[DAG]=Klassetimeplan[[#Headers],[LØRDAG]])*(ROUNDDOWN($B38,10)>=ROUNDDOWN(Klasseliste[STARTTIDSPUNKT],10))*($B38<=Klasseliste[SLUTTIDSPUNKT]),Klasseliste[UNIK]),Klasseliste[UNIK],0),2),0)","v":0}]
[null,"16:45:00",{"$f":"IFERROR(INDEX(Klasseliste[],MATCH(SUMPRODUCT((Klasseliste[DAG]=Klassetimeplan[[#Headers],[SØNDAG]])*(ROUNDDOWN($B39,10)>=ROUNDDOWN(Klasseliste[STARTTIDSPUNKT],10))*($B39<=Klasseliste[SLUTTIDSPUNKT]),Klasseliste[UNIK]),Klasseliste[UNIK],0),2),0)","v":0},{"$f":"IFERROR(INDEX(Klasseliste[],MATCH(SUMPRODUCT((Klasseliste[DAG]=Klassetimeplan[[#Headers],[MANDAG]])*(ROUNDDOWN($B39,10)>=ROUNDDOWN(Klasseliste[STARTTIDSPUNKT],10))*($B39<=Klasseliste[SLUTTIDSPUNKT]),Klasseliste[UNIK]),Klasseliste[UNIK],0),2),0)","v":"SP-111"},{"$f":"IFERROR(INDEX(Klasseliste[],MATCH(SUMPRODUCT((Klasseliste[DAG]=Klassetimeplan[[#Headers],[TIRSDAG]])*(ROUNDDOWN($B39,10)>=ROUNDDOWN(Klasseliste[STARTTIDSPUNKT],10))*($B39<=Klasseliste[SLUTTIDSPUNKT]),Klasseliste[UNIK]),Klasseliste[UNIK],0),2),0)","v":0},{"$f":"IFERROR(INDEX(Klasseliste[],MATCH(SUMPRODUCT((Klasseliste[DAG]=Klassetimeplan[[#Headers],[ONSDAG]])*(ROUNDDOWN($B39,10)>=ROUNDDOWN(Klasseliste[STARTTIDSPUNKT],10))*($B39<=Klasseliste[SLUTTIDSPUNKT]),Klasseliste[UNIK]),Klasseliste[UNIK],0),2),0)","v":0},{"$f":"IFERROR(INDEX(Klasseliste[],MATCH(SUMPRODUCT((Klasseliste[DAG]=Klassetimeplan[[#Headers],[TORSDAG]])*(ROUNDDOWN($B39,10)>=ROUNDDOWN(Klasseliste[STARTTIDSPUNKT],10))*($B39<=Klasseliste[SLUTTIDSPUNKT]),Klasseliste[UNIK]),Klasseliste[UNIK],0),2),0)","v":0},{"$f":"IFERROR(INDEX(Klasseliste[],MATCH(SUMPRODUCT((Klasseliste[DAG]=Klassetimeplan[[#Headers],[FREDAG]])*(ROUNDDOWN($B39,10)>=ROUNDDOWN(Klasseliste[STARTTIDSPUNKT],10))*($B39<=Klasseliste[SLUTTIDSPUNKT]),Klasseliste[UNIK]),Klasseliste[UNIK],0),2),0)","v":0},{"$f":"IFERROR(INDEX(Klasseliste[],MATCH(SUMPRODUCT((Klasseliste[DAG]=Klassetimeplan[[#Headers],[LØRDAG]])*(ROUNDDOWN($B39,10)>=ROUNDDOWN(Klasseliste[STARTTIDSPUNKT],10))*($B39<=Klasseliste[SLUTTIDSPUNKT]),Klasseliste[UNIK]),Klasseliste[UNIK],0),2),0)","v":0}]
[null,"17:00:00",{"$f":"IFERROR(INDEX(Klasseliste[],MATCH(SUMPRODUCT((Klasseliste[DAG]=Klassetimeplan[[#Headers],[SØNDAG]])*(ROUNDDOWN($B40,10)>=ROUNDDOWN(Klasseliste[STARTTIDSPUNKT],10))*($B40<=Klasseliste[SLUTTIDSPUNKT]),Klasseliste[UNIK]),Klasseliste[UNIK],0),2),0)","v":0},{"$f":"IFERROR(INDEX(Klasseliste[],MATCH(SUMPRODUCT((Klasseliste[DAG]=Klassetimeplan[[#Headers],[MANDAG]])*(ROUNDDOWN($B40,10)>=ROUNDDOWN(Klasseliste[STARTTIDSPUNKT],10))*($B40<=Klasseliste[SLUTTIDSPUNKT]),Klasseliste[UNIK]),Klasseliste[UNIK],0),2),0)","v":"SP-111"},{"$f":"IFERROR(INDEX(Klasseliste[],MATCH(SUMPRODUCT((Klasseliste[DAG]=Klassetimeplan[[#Headers],[TIRSDAG]])*(ROUNDDOWN($B40,10)>=ROUNDDOWN(Klasseliste[STARTTIDSPUNKT],10))*($B40<=Klasseliste[SLUTTIDSPUNKT]),Klasseliste[UNIK]),Klasseliste[UNIK],0),2),0)","v":0},{"$f":"IFERROR(INDEX(Klasseliste[],MATCH(SUMPRODUCT((Klasseliste[DAG]=Klassetimeplan[[#Headers],[ONSDAG]])*(ROUNDDOWN($B40,10)>=ROUNDDOWN(Klasseliste[STARTTIDSPUNKT],10))*($B40<=Klasseliste[SLUTTIDSPUNKT]),Klasseliste[UNIK]),Klasseliste[UNIK],0),2),0)","v":0},{"$f":"IFERROR(INDEX(Klasseliste[],MATCH(SUMPRODUCT((Klasseliste[DAG]=Klassetimeplan[[#Headers],[TORSDAG]])*(ROUNDDOWN($B40,10)>=ROUNDDOWN(Klasseliste[STARTTIDSPUNKT],10))*($B40<=Klasseliste[SLUTTIDSPUNKT]),Klasseliste[UNIK]),Klasseliste[UNIK],0),2),0)","v":0},{"$f":"IFERROR(INDEX(Klasseliste[],MATCH(SUMPRODUCT((Klasseliste[DAG]=Klassetimeplan[[#Headers],[FREDAG]])*(ROUNDDOWN($B40,10)>=ROUNDDOWN(Klasseliste[STARTTIDSPUNKT],10))*($B40<=Klasseliste[SLUTTIDSPUNKT]),Klasseliste[UNIK]),Klasseliste[UNIK],0),2),0)","v":0},{"$f":"IFERROR(INDEX(Klasseliste[],MATCH(SUMPRODUCT((Klasseliste[DAG]=Klassetimeplan[[#Headers],[LØRDAG]])*(ROUNDDOWN($B40,10)>=ROUNDDOWN(Klasseliste[STARTTIDSPUNKT],10))*($B40<=Klasseliste[SLUTTIDSPUNKT]),Klasseliste[UNIK]),Klasseliste[UNIK],0),2),0)","v":0}]
[null,"17:15:00",{"$f":"IFERROR(INDEX(Klasseliste[],MATCH(SUMPRODUCT((Klasseliste[DAG]=Klassetimeplan[[#Headers],[SØNDAG]])*(ROUNDDOWN($B41,10)>=ROUNDDOWN(Klasseliste[STARTTIDSPUNKT],10))*($B41<=Klasseliste[SLUTTIDSPUNKT]),Klasseliste[UNIK]),Klasseliste[UNIK],0),2),0)","v":0},{"$f":"IFERROR(INDEX(Klasseliste[],MATCH(SUMPRODUCT((Klasseliste[DAG]=Klassetimeplan[[#Headers],[MANDAG]])*(ROUNDDOWN($B41,10)>=ROUNDDOWN(Klasseliste[STARTTIDSPUNKT],10))*($B41<=Klasseliste[SLUTTIDSPUNKT]),Klasseliste[UNIK]),Klasseliste[UNIK],0),2),0)","v":0},{"$f":"IFERROR(INDEX(Klasseliste[],MATCH(SUMPRODUCT((Klasseliste[DAG]=Klassetimeplan[[#Headers],[TIRSDAG]])*(ROUNDDOWN($B41,10)>=ROUNDDOWN(Klasseliste[STARTTIDSPUNKT],10))*($B41<=Klasseliste[SLUTTIDSPUNKT]),Klasseliste[UNIK]),Klasseliste[UNIK],0),2),0)","v":0},{"$f":"IFERROR(INDEX(Klasseliste[],MATCH(SUMPRODUCT((Klasseliste[DAG]=Klassetimeplan[[#Headers],[ONSDAG]])*(ROUNDDOWN($B41,10)>=ROUNDDOWN(Klasseliste[STARTTIDSPUNKT],10))*($B41<=Klasseliste[SLUTTIDSPUNKT]),Klasseliste[UNIK]),Klasseliste[UNIK],0),2),0)","v":0},{"$f":"IFERROR(INDEX(Klasseliste[],MATCH(SUMPRODUCT((Klasseliste[DAG]=Klassetimeplan[[#Headers],[TORSDAG]])*(ROUNDDOWN($B41,10)>=ROUNDDOWN(Klasseliste[STARTTIDSPUNKT],10))*($B41<=Klasseliste[SLUTTIDSPUNKT]),Klasseliste[UNIK]),Klasseliste[UNIK],0),2),0)","v":0},{"$f":"IFERROR(INDEX(Klasseliste[],MATCH(SUMPRODUCT((Klasseliste[DAG]=Klassetimeplan[[#Headers],[FREDAG]])*(ROUNDDOWN($B41,10)>=ROUNDDOWN(Klasseliste[STARTTIDSPUNKT],10))*($B41<=Klasseliste[SLUTTIDSPUNKT]),Klasseliste[UNIK]),Klasseliste[UNIK],0),2),0)","v":0},{"$f":"IFERROR(INDEX(Klasseliste[],MATCH(SUMPRODUCT((Klasseliste[DAG]=Klassetimeplan[[#Headers],[LØRDAG]])*(ROUNDDOWN($B41,10)>=ROUNDDOWN(Klasseliste[STARTTIDSPUNKT],10))*($B41<=Klasseliste[SLUTTIDSPUNKT]),Klasseliste[UNIK]),Klasseliste[UNIK],0),2),0)","v":0}]
[null,"17:30:00",{"$f":"IFERROR(INDEX(Klasseliste[],MATCH(SUMPRODUCT((Klasseliste[DAG]=Klassetimeplan[[#Headers],[SØNDAG]])*(ROUNDDOWN($B42,10)>=ROUNDDOWN(Klasseliste[STARTTIDSPUNKT],10))*($B42<=Klasseliste[SLUTTIDSPUNKT]),Klasseliste[UNIK]),Klasseliste[UNIK],0),2),0)","v":0},{"$f":"IFERROR(INDEX(Klasseliste[],MATCH(SUMPRODUCT((Klasseliste[DAG]=Klassetimeplan[[#Headers],[MANDAG]])*(ROUNDDOWN($B42,10)>=ROUNDDOWN(Klasseliste[STARTTIDSPUNKT],10))*($B42<=Klasseliste[SLUTTIDSPUNKT]),Klasseliste[UNIK]),Klasseliste[UNIK],0),2),0)","v":0},{"$f":"IFERROR(INDEX(Klasseliste[],MATCH(SUMPRODUCT((Klasseliste[DAG]=Klassetimeplan[[#Headers],[TIRSDAG]])*(ROUNDDOWN($B42,10)>=ROUNDDOWN(Klasseliste[STARTTIDSPUNKT],10))*($B42<=Klasseliste[SLUTTIDSPUNKT]),Klasseliste[UNIK]),Klasseliste[UNIK],0),2),0)","v":0},{"$f":"IFERROR(INDEX(Klasseliste[],MATCH(SUMPRODUCT((Klasseliste[DAG]=Klassetimeplan[[#Headers],[ONSDAG]])*(ROUNDDOWN($B42,10)>=ROUNDDOWN(Klasseliste[STARTTIDSPUNKT],10))*($B42<=Klasseliste[SLUTTIDSPUNKT]),Klasseliste[UNIK]),Klasseliste[UNIK],0),2),0)","v":0},{"$f":"IFERROR(INDEX(Klasseliste[],MATCH(SUMPRODUCT((Klasseliste[DAG]=Klassetimeplan[[#Headers],[TORSDAG]])*(ROUNDDOWN($B42,10)>=ROUNDDOWN(Klasseliste[STARTTIDSPUNKT],10))*($B42<=Klasseliste[SLUTTIDSPUNKT]),Klasseliste[UNIK]),Klasseliste[UNIK],0),2),0)","v":0},{"$f":"IFERROR(INDEX(Klasseliste[],MATCH(SUMPRODUCT((Klasseliste[DAG]=Klassetimeplan[[#Headers],[FREDAG]])*(ROUNDDOWN($B42,10)>=ROUNDDOWN(Klasseliste[STARTTIDSPUNKT],10))*($B42<=Klasseliste[SLUTTIDSPUNKT]),Klasseliste[UNIK]),Klasseliste[UNIK],0),2),0)","v":0},{"$f":"IFERROR(INDEX(Klasseliste[],MATCH(SUMPRODUCT((Klasseliste[DAG]=Klassetimeplan[[#Headers],[LØRDAG]])*(ROUNDDOWN($B42,10)>=ROUNDDOWN(Klasseliste[STARTTIDSPUNKT],10))*($B42<=Klasseliste[SLUTTIDSPUNKT]),Klasseliste[UNIK]),Klasseliste[UNIK],0),2),0)","v":0}]
[null,"17:45:00",{"$f":"IFERROR(INDEX(Klasseliste[],MATCH(SUMPRODUCT((Klasseliste[DAG]=Klassetimeplan[[#Headers],[SØNDAG]])*(ROUNDDOWN($B43,10)>=ROUNDDOWN(Klasseliste[STARTTIDSPUNKT],10))*($B43<=Klasseliste[SLUTTIDSPUNKT]),Klasseliste[UNIK]),Klasseliste[UNIK],0),2),0)","v":0},{"$f":"IFERROR(INDEX(Klasseliste[],MATCH(SUMPRODUCT((Klasseliste[DAG]=Klassetimeplan[[#Headers],[MANDAG]])*(ROUNDDOWN($B43,10)>=ROUNDDOWN(Klasseliste[STARTTIDSPUNKT],10))*($B43<=Klasseliste[SLUTTIDSPUNKT]),Klasseliste[UNIK]),Klasseliste[UNIK],0),2),0)","v":0},{"$f":"IFERROR(INDEX(Klasseliste[],MATCH(SUMPRODUCT((Klasseliste[DAG]=Klassetimeplan[[#Headers],[TIRSDAG]])*(ROUNDDOWN($B43,10)>=ROUNDDOWN(Klasseliste[STARTTIDSPUNKT],10))*($B43<=Klasseliste[SLUTTIDSPUNKT]),Klasseliste[UNIK]),Klasseliste[UNIK],0),2),0)","v":0},{"$f":"IFERROR(INDEX(Klasseliste[],MATCH(SUMPRODUCT((Klasseliste[DAG]=Klassetimeplan[[#Headers],[ONSDAG]])*(ROUNDDOWN($B43,10)>=ROUNDDOWN(Klasseliste[STARTTIDSPUNKT],10))*($B43<=Klasseliste[SLUTTIDSPUNKT]),Klasseliste[UNIK]),Klasseliste[UNIK],0),2),0)","v":0},{"$f":"IFERROR(INDEX(Klasseliste[],MATCH(SUMPRODUCT((Klasseliste[DAG]=Klassetimeplan[[#Headers],[TORSDAG]])*(ROUNDDOWN($B43,10)>=ROUNDDOWN(Klasseliste[STARTTIDSPUNKT],10))*($B43<=Klasseliste[SLUTTIDSPUNKT]),Klasseliste[UNIK]),Klasseliste[UNIK],0),2),0)","v":0},{"$f":"IFERROR(INDEX(Klasseliste[],MATCH(SUMPRODUCT((Klasseliste[DAG]=Klassetimeplan[[#Headers],[FREDAG]])*(ROUNDDOWN($B43,10)>=ROUNDDOWN(Klasseliste[STARTTIDSPUNKT],10))*($B43<=Klasseliste[SLUTTIDSPUNKT]),Klasseliste[UNIK]),Klasseliste[UNIK],0),2),0)","v":0},{"$f":"IFERROR(INDEX(Klasseliste[],MATCH(SUMPRODUCT((Klasseliste[DAG]=Klassetimeplan[[#Headers],[LØRDAG]])*(ROUNDDOWN($B43,10)>=ROUNDDOWN(Klasseliste[STARTTIDSPUNKT],10))*($B43<=Klasseliste[SLUTTIDSPUNKT]),Klasseliste[UNIK]),Klasseliste[UNIK],0),2),0)","v":0}]
[null,"18:00:00",{"$f":"IFERROR(INDEX(Klasseliste[],MATCH(SUMPRODUCT((Klasseliste[DAG]=Klassetimeplan[[#Headers],[SØNDAG]])*(ROUNDDOWN($B44,10)>=ROUNDDOWN(Klasseliste[STARTTIDSPUNKT],10))*($B44<=Klasseliste[SLUTTIDSPUNKT]),Klasseliste[UNIK]),Klasseliste[UNIK],0),2),0)","v":0},{"$f":"IFERROR(INDEX(Klasseliste[],MATCH(SUMPRODUCT((Klasseliste[DAG]=Klassetimeplan[[#Headers],[MANDAG]])*(ROUNDDOWN($B44,10)>=ROUNDDOWN(Klasseliste[STARTTIDSPUNKT],10))*($B44<=Klasseliste[SLUTTIDSPUNKT]),Klasseliste[UNIK]),Klasseliste[UNIK],0),2),0)","v":0},{"$f":"IFERROR(INDEX(Klasseliste[],MATCH(SUMPRODUCT((Klasseliste[DAG]=Klassetimeplan[[#Headers],[TIRSDAG]])*(ROUNDDOWN($B44,10)>=ROUNDDOWN(Klasseliste[STARTTIDSPUNKT],10))*($B44<=Klasseliste[SLUTTIDSPUNKT]),Klasseliste[UNIK]),Klasseliste[UNIK],0),2),0)","v":0},{"$f":"IFERROR(INDEX(Klasseliste[],MATCH(SUMPRODUCT((Klasseliste[DAG]=Klassetimeplan[[#Headers],[ONSDAG]])*(ROUNDDOWN($B44,10)>=ROUNDDOWN(Klasseliste[STARTTIDSPUNKT],10))*($B44<=Klasseliste[SLUTTIDSPUNKT]),Klasseliste[UNIK]),Klasseliste[UNIK],0),2),0)","v":0},{"$f":"IFERROR(INDEX(Klasseliste[],MATCH(SUMPRODUCT((Klasseliste[DAG]=Klassetimeplan[[#Headers],[TORSDAG]])*(ROUNDDOWN($B44,10)>=ROUNDDOWN(Klasseliste[STARTTIDSPUNKT],10))*($B44<=Klasseliste[SLUTTIDSPUNKT]),Klasseliste[UNIK]),Klasseliste[UNIK],0),2),0)","v":0},{"$f":"IFERROR(INDEX(Klasseliste[],MATCH(SUMPRODUCT((Klasseliste[DAG]=Klassetimeplan[[#Headers],[FREDAG]])*(ROUNDDOWN($B44,10)>=ROUNDDOWN(Klasseliste[STARTTIDSPUNKT],10))*($B44<=Klasseliste[SLUTTIDSPUNKT]),Klasseliste[UNIK]),Klasseliste[UNIK],0),2),0)","v":0},{"$f":"IFERROR(INDEX(Klasseliste[],MATCH(SUMPRODUCT((Klasseliste[DAG]=Klassetimeplan[[#Headers],[LØRDAG]])*(ROUNDDOWN($B44,10)>=ROUNDDOWN(Klasseliste[STARTTIDSPUNKT],10))*($B44<=Klasseliste[SLUTTIDSPUNKT]),Klasseliste[UNIK]),Klasseliste[UNIK],0),2),0)","v":0}]
[null,"18:15:00",{"$f":"IFERROR(INDEX(Klasseliste[],MATCH(SUMPRODUCT((Klasseliste[DAG]=Klassetimeplan[[#Headers],[SØNDAG]])*(ROUNDDOWN($B45,10)>=ROUNDDOWN(Klasseliste[STARTTIDSPUNKT],10))*($B45<=Klasseliste[SLUTTIDSPUNKT]),Klasseliste[UNIK]),Klasseliste[UNIK],0),2),0)","v":0},{"$f":"IFERROR(INDEX(Klasseliste[],MATCH(SUMPRODUCT((Klasseliste[DAG]=Klassetimeplan[[#Headers],[MANDAG]])*(ROUNDDOWN($B45,10)>=ROUNDDOWN(Klasseliste[STARTTIDSPUNKT],10))*($B45<=Klasseliste[SLUTTIDSPUNKT]),Klasseliste[UNIK]),Klasseliste[UNIK],0),2),0)","v":0},{"$f":"IFERROR(INDEX(Klasseliste[],MATCH(SUMPRODUCT((Klasseliste[DAG]=Klassetimeplan[[#Headers],[TIRSDAG]])*(ROUNDDOWN($B45,10)>=ROUNDDOWN(Klasseliste[STARTTIDSPUNKT],10))*($B45<=Klasseliste[SLUTTIDSPUNKT]),Klasseliste[UNIK]),Klasseliste[UNIK],0),2),0)","v":0},{"$f":"IFERROR(INDEX(Klasseliste[],MATCH(SUMPRODUCT((Klasseliste[DAG]=Klassetimeplan[[#Headers],[ONSDAG]])*(ROUNDDOWN($B45,10)>=ROUNDDOWN(Klasseliste[STARTTIDSPUNKT],10))*($B45<=Klasseliste[SLUTTIDSPUNKT]),Klasseliste[UNIK]),Klasseliste[UNIK],0),2),0)","v":0},{"$f":"IFERROR(INDEX(Klasseliste[],MATCH(SUMPRODUCT((Klasseliste[DAG]=Klassetimeplan[[#Headers],[TORSDAG]])*(ROUNDDOWN($B45,10)>=ROUNDDOWN(Klasseliste[STARTTIDSPUNKT],10))*($B45<=Klasseliste[SLUTTIDSPUNKT]),Klasseliste[UNIK]),Klasseliste[UNIK],0),2),0)","v":0},{"$f":"IFERROR(INDEX(Klasseliste[],MATCH(SUMPRODUCT((Klasseliste[DAG]=Klassetimeplan[[#Headers],[FREDAG]])*(ROUNDDOWN($B45,10)>=ROUNDDOWN(Klasseliste[STARTTIDSPUNKT],10))*($B45<=Klasseliste[SLUTTIDSPUNKT]),Klasseliste[UNIK]),Klasseliste[UNIK],0),2),0)","v":0},{"$f":"IFERROR(INDEX(Klasseliste[],MATCH(SUMPRODUCT((Klasseliste[DAG]=Klassetimeplan[[#Headers],[LØRDAG]])*(ROUNDDOWN($B45,10)>=ROUNDDOWN(Klasseliste[STARTTIDSPUNKT],10))*($B45<=Klasseliste[SLUTTIDSPUNKT]),Klasseliste[UNIK]),Klasseliste[UNIK],0),2),0)","v":0}]
[null,"18:30:00",{"$f":"IFERROR(INDEX(Klasseliste[],MATCH(SUMPRODUCT((Klasseliste[DAG]=Klassetimeplan[[#Headers],[SØNDAG]])*(ROUNDDOWN($B46,10)>=ROUNDDOWN(Klasseliste[STARTTIDSPUNKT],10))*($B46<=Klasseliste[SLUTTIDSPUNKT]),Klasseliste[UNIK]),Klasseliste[UNIK],0),2),0)","v":0},{"$f":"IFERROR(INDEX(Klasseliste[],MATCH(SUMPRODUCT((Klasseliste[DAG]=Klassetimeplan[[#Headers],[MANDAG]])*(ROUNDDOWN($B46,10)>=ROUNDDOWN(Klasseliste[STARTTIDSPUNKT],10))*($B46<=Klasseliste[SLUTTIDSPUNKT]),Klasseliste[UNIK]),Klasseliste[UNIK],0),2),0)","v":0},{"$f":"IFERROR(INDEX(Klasseliste[],MATCH(SUMPRODUCT((Klasseliste[DAG]=Klassetimeplan[[#Headers],[TIRSDAG]])*(ROUNDDOWN($B46,10)>=ROUNDDOWN(Klasseliste[STARTTIDSPUNKT],10))*($B46<=Klasseliste[SLUTTIDSPUNKT]),Klasseliste[UNIK]),Klasseliste[UNIK],0),2),0)","v":0},{"$f":"IFERROR(INDEX(Klasseliste[],MATCH(SUMPRODUCT((Klasseliste[DAG]=Klassetimeplan[[#Headers],[ONSDAG]])*(ROUNDDOWN($B46,10)>=ROUNDDOWN(Klasseliste[STARTTIDSPUNKT],10))*($B46<=Klasseliste[SLUTTIDSPUNKT]),Klasseliste[UNIK]),Klasseliste[UNIK],0),2),0)","v":0},{"$f":"IFERROR(INDEX(Klasseliste[],MATCH(SUMPRODUCT((Klasseliste[DAG]=Klassetimeplan[[#Headers],[TORSDAG]])*(ROUNDDOWN($B46,10)>=ROUNDDOWN(Klasseliste[STARTTIDSPUNKT],10))*($B46<=Klasseliste[SLUTTIDSPUNKT]),Klasseliste[UNIK]),Klasseliste[UNIK],0),2),0)","v":0},{"$f":"IFERROR(INDEX(Klasseliste[],MATCH(SUMPRODUCT((Klasseliste[DAG]=Klassetimeplan[[#Headers],[FREDAG]])*(ROUNDDOWN($B46,10)>=ROUNDDOWN(Klasseliste[STARTTIDSPUNKT],10))*($B46<=Klasseliste[SLUTTIDSPUNKT]),Klasseliste[UNIK]),Klasseliste[UNIK],0),2),0)","v":0},{"$f":"IFERROR(INDEX(Klasseliste[],MATCH(SUMPRODUCT((Klasseliste[DAG]=Klassetimeplan[[#Headers],[LØRDAG]])*(ROUNDDOWN($B46,10)>=ROUNDDOWN(Klasseliste[STARTTIDSPUNKT],10))*($B46<=Klasseliste[SLUTTIDSPUNKT]),Klasseliste[UNIK]),Klasseliste[UNIK],0),2),0)","v":0}]
[null,"18:45:00",{"$f":"IFERROR(INDEX(Klasseliste[],MATCH(SUMPRODUCT((Klasseliste[DAG]=Klassetimeplan[[#Headers],[SØNDAG]])*(ROUNDDOWN($B47,10)>=ROUNDDOWN(Klasseliste[STARTTIDSPUNKT],10))*($B47<=Klasseliste[SLUTTIDSPUNKT]),Klasseliste[UNIK]),Klasseliste[UNIK],0),2),0)","v":0},{"$f":"IFERROR(INDEX(Klasseliste[],MATCH(SUMPRODUCT((Klasseliste[DAG]=Klassetimeplan[[#Headers],[MANDAG]])*(ROUNDDOWN($B47,10)>=ROUNDDOWN(Klasseliste[STARTTIDSPUNKT],10))*($B47<=Klasseliste[SLUTTIDSPUNKT]),Klasseliste[UNIK]),Klasseliste[UNIK],0),2),0)","v":0},{"$f":"IFERROR(INDEX(Klasseliste[],MATCH(SUMPRODUCT((Klasseliste[DAG]=Klassetimeplan[[#Headers],[TIRSDAG]])*(ROUNDDOWN($B47,10)>=ROUNDDOWN(Klasseliste[STARTTIDSPUNKT],10))*($B47<=Klasseliste[SLUTTIDSPUNKT]),Klasseliste[UNIK]),Klasseliste[UNIK],0),2),0)","v":0},{"$f":"IFERROR(INDEX(Klasseliste[],MATCH(SUMPRODUCT((Klasseliste[DAG]=Klassetimeplan[[#Headers],[ONSDAG]])*(ROUNDDOWN($B47,10)>=ROUNDDOWN(Klasseliste[STARTTIDSPUNKT],10))*($B47<=Klasseliste[SLUTTIDSPUNKT]),Klasseliste[UNIK]),Klasseliste[UNIK],0),2),0)","v":0},{"$f":"IFERROR(INDEX(Klasseliste[],MATCH(SUMPRODUCT((Klasseliste[DAG]=Klassetimeplan[[#Headers],[TORSDAG]])*(ROUNDDOWN($B47,10)>=ROUNDDOWN(Klasseliste[STARTTIDSPUNKT],10))*($B47<=Klasseliste[SLUTTIDSPUNKT]),Klasseliste[UNIK]),Klasseliste[UNIK],0),2),0)","v":0},{"$f":"IFERROR(INDEX(Klasseliste[],MATCH(SUMPRODUCT((Klasseliste[DAG]=Klassetimeplan[[#Headers],[FREDAG]])*(ROUNDDOWN($B47,10)>=ROUNDDOWN(Klasseliste[STARTTIDSPUNKT],10))*($B47<=Klasseliste[SLUTTIDSPUNKT]),Klasseliste[UNIK]),Klasseliste[UNIK],0),2),0)","v":0},{"$f":"IFERROR(INDEX(Klasseliste[],MATCH(SUMPRODUCT((Klasseliste[DAG]=Klassetimeplan[[#Headers],[LØRDAG]])*(ROUNDDOWN($B47,10)>=ROUNDDOWN(Klasseliste[STARTTIDSPUNKT],10))*($B47<=Klasseliste[SLUTTIDSPUNKT]),Klasseliste[UNIK]),Klasseliste[UNIK],0),2),0)","v":0}]
[null,"19:00:00",{"$f":"IFERROR(INDEX(Klasseliste[],MATCH(SUMPRODUCT((Klasseliste[DAG]=Klassetimeplan[[#Headers],[SØNDAG]])*(ROUNDDOWN($B48,10)>=ROUNDDOWN(Klasseliste[STARTTIDSPUNKT],10))*($B48<=Klasseliste[SLUTTIDSPUNKT]),Klasseliste[UNIK]),Klasseliste[UNIK],0),2),0)","v":0},{"$f":"IFERROR(INDEX(Klasseliste[],MATCH(SUMPRODUCT((Klasseliste[DAG]=Klassetimeplan[[#Headers],[MANDAG]])*(ROUNDDOWN($B48,10)>=ROUNDDOWN(Klasseliste[STARTTIDSPUNKT],10))*($B48<=Klasseliste[SLUTTIDSPUNKT]),Klasseliste[UNIK]),Klasseliste[UNIK],0),2),0)","v":0},{"$f":"IFERROR(INDEX(Klasseliste[],MATCH(SUMPRODUCT((Klasseliste[DAG]=Klassetimeplan[[#Headers],[TIRSDAG]])*(ROUNDDOWN($B48,10)>=ROUNDDOWN(Klasseliste[STARTTIDSPUNKT],10))*($B48<=Klasseliste[SLUTTIDSPUNKT]),Klasseliste[UNIK]),Klasseliste[UNIK],0),2),0)","v":0},{"$f":"IFERROR(INDEX(Klasseliste[],MATCH(SUMPRODUCT((Klasseliste[DAG]=Klassetimeplan[[#Headers],[ONSDAG]])*(ROUNDDOWN($B48,10)>=ROUNDDOWN(Klasseliste[STARTTIDSPUNKT],10))*($B48<=Klasseliste[SLUTTIDSPUNKT]),Klasseliste[UNIK]),Klasseliste[UNIK],0),2),0)","v":0},{"$f":"IFERROR(INDEX(Klasseliste[],MATCH(SUMPRODUCT((Klasseliste[DAG]=Klassetimeplan[[#Headers],[TORSDAG]])*(ROUNDDOWN($B48,10)>=ROUNDDOWN(Klasseliste[STARTTIDSPUNKT],10))*($B48<=Klasseliste[SLUTTIDSPUNKT]),Klasseliste[UNIK]),Klasseliste[UNIK],0),2),0)","v":0},{"$f":"IFERROR(INDEX(Klasseliste[],MATCH(SUMPRODUCT((Klasseliste[DAG]=Klassetimeplan[[#Headers],[FREDAG]])*(ROUNDDOWN($B48,10)>=ROUNDDOWN(Klasseliste[STARTTIDSPUNKT],10))*($B48<=Klasseliste[SLUTTIDSPUNKT]),Klasseliste[UNIK]),Klasseliste[UNIK],0),2),0)","v":0},{"$f":"IFERROR(INDEX(Klasseliste[],MATCH(SUMPRODUCT((Klasseliste[DAG]=Klassetimeplan[[#Headers],[LØRDAG]])*(ROUNDDOWN($B48,10)>=ROUNDDOWN(Klasseliste[STARTTIDSPUNKT],10))*($B48<=Klasseliste[SLUTTIDSPUNKT]),Klasseliste[UNIK]),Klasseliste[UNIK],0),2),0)","v":0}]
[null,"19:15:00",{"$f":"IFERROR(INDEX(Klasseliste[],MATCH(SUMPRODUCT((Klasseliste[DAG]=Klassetimeplan[[#Headers],[SØNDAG]])*(ROUNDDOWN($B49,10)>=ROUNDDOWN(Klasseliste[STARTTIDSPUNKT],10))*($B49<=Klasseliste[SLUTTIDSPUNKT]),Klasseliste[UNIK]),Klasseliste[UNIK],0),2),0)","v":0},{"$f":"IFERROR(INDEX(Klasseliste[],MATCH(SUMPRODUCT((Klasseliste[DAG]=Klassetimeplan[[#Headers],[MANDAG]])*(ROUNDDOWN($B49,10)>=ROUNDDOWN(Klasseliste[STARTTIDSPUNKT],10))*($B49<=Klasseliste[SLUTTIDSPUNKT]),Klasseliste[UNIK]),Klasseliste[UNIK],0),2),0)","v":0},{"$f":"IFERROR(INDEX(Klasseliste[],MATCH(SUMPRODUCT((Klasseliste[DAG]=Klassetimeplan[[#Headers],[TIRSDAG]])*(ROUNDDOWN($B49,10)>=ROUNDDOWN(Klasseliste[STARTTIDSPUNKT],10))*($B49<=Klasseliste[SLUTTIDSPUNKT]),Klasseliste[UNIK]),Klasseliste[UNIK],0),2),0)","v":0},{"$f":"IFERROR(INDEX(Klasseliste[],MATCH(SUMPRODUCT((Klasseliste[DAG]=Klassetimeplan[[#Headers],[ONSDAG]])*(ROUNDDOWN($B49,10)>=ROUNDDOWN(Klasseliste[STARTTIDSPUNKT],10))*($B49<=Klasseliste[SLUTTIDSPUNKT]),Klasseliste[UNIK]),Klasseliste[UNIK],0),2),0)","v":0},{"$f":"IFERROR(INDEX(Klasseliste[],MATCH(SUMPRODUCT((Klasseliste[DAG]=Klassetimeplan[[#Headers],[TORSDAG]])*(ROUNDDOWN($B49,10)>=ROUNDDOWN(Klasseliste[STARTTIDSPUNKT],10))*($B49<=Klasseliste[SLUTTIDSPUNKT]),Klasseliste[UNIK]),Klasseliste[UNIK],0),2),0)","v":0},{"$f":"IFERROR(INDEX(Klasseliste[],MATCH(SUMPRODUCT((Klasseliste[DAG]=Klassetimeplan[[#Headers],[FREDAG]])*(ROUNDDOWN($B49,10)>=ROUNDDOWN(Klasseliste[STARTTIDSPUNKT],10))*($B49<=Klasseliste[SLUTTIDSPUNKT]),Klasseliste[UNIK]),Klasseliste[UNIK],0),2),0)","v":0},{"$f":"IFERROR(INDEX(Klasseliste[],MATCH(SUMPRODUCT((Klasseliste[DAG]=Klassetimeplan[[#Headers],[LØRDAG]])*(ROUNDDOWN($B49,10)>=ROUNDDOWN(Klasseliste[STARTTIDSPUNKT],10))*($B49<=Klasseliste[SLUTTIDSPUNKT]),Klasseliste[UNIK]),Klasseliste[UNIK],0),2),0)","v":0}]
[null,"19:30:00",{"$f":"IFERROR(INDEX(Klasseliste[],MATCH(SUMPRODUCT((Klasseliste[DAG]=Klassetimeplan[[#Headers],[SØNDAG]])*(ROUNDDOWN($B50,10)>=ROUNDDOWN(Klasseliste[STARTTIDSPUNKT],10))*($B50<=Klasseliste[SLUTTIDSPUNKT]),Klasseliste[UNIK]),Klasseliste[UNIK],0),2),0)","v":0},{"$f":"IFERROR(INDEX(Klasseliste[],MATCH(SUMPRODUCT((Klasseliste[DAG]=Klassetimeplan[[#Headers],[MANDAG]])*(ROUNDDOWN($B50,10)>=ROUNDDOWN(Klasseliste[STARTTIDSPUNKT],10))*($B50<=Klasseliste[SLUTTIDSPUNKT]),Klasseliste[UNIK]),Klasseliste[UNIK],0),2),0)","v":0},{"$f":"IFERROR(INDEX(Klasseliste[],MATCH(SUMPRODUCT((Klasseliste[DAG]=Klassetimeplan[[#Headers],[TIRSDAG]])*(ROUNDDOWN($B50,10)>=ROUNDDOWN(Klasseliste[STARTTIDSPUNKT],10))*($B50<=Klasseliste[SLUTTIDSPUNKT]),Klasseliste[UNIK]),Klasseliste[UNIK],0),2),0)","v":0},{"$f":"IFERROR(INDEX(Klasseliste[],MATCH(SUMPRODUCT((Klasseliste[DAG]=Klassetimeplan[[#Headers],[ONSDAG]])*(ROUNDDOWN($B50,10)>=ROUNDDOWN(Klasseliste[STARTTIDSPUNKT],10))*($B50<=Klasseliste[SLUTTIDSPUNKT]),Klasseliste[UNIK]),Klasseliste[UNIK],0),2),0)","v":0},{"$f":"IFERROR(INDEX(Klasseliste[],MATCH(SUMPRODUCT((Klasseliste[DAG]=Klassetimeplan[[#Headers],[TORSDAG]])*(ROUNDDOWN($B50,10)>=ROUNDDOWN(Klasseliste[STARTTIDSPUNKT],10))*($B50<=Klasseliste[SLUTTIDSPUNKT]),Klasseliste[UNIK]),Klasseliste[UNIK],0),2),0)","v":0},{"$f":"IFERROR(INDEX(Klasseliste[],MATCH(SUMPRODUCT((Klasseliste[DAG]=Klassetimeplan[[#Headers],[FREDAG]])*(ROUNDDOWN($B50,10)>=ROUNDDOWN(Klasseliste[STARTTIDSPUNKT],10))*($B50<=Klasseliste[SLUTTIDSPUNKT]),Klasseliste[UNIK]),Klasseliste[UNIK],0),2),0)","v":0},{"$f":"IFERROR(INDEX(Klasseliste[],MATCH(SUMPRODUCT((Klasseliste[DAG]=Klassetimeplan[[#Headers],[LØRDAG]])*(ROUNDDOWN($B50,10)>=ROUNDDOWN(Klasseliste[STARTTIDSPUNKT],10))*($B50<=Klasseliste[SLUTTIDSPUNKT]),Klasseliste[UNIK]),Klasseliste[UNIK],0),2),0)","v":0}]
[null,"19:45:00",{"$f":"IFERROR(INDEX(Klasseliste[],MATCH(SUMPRODUCT((Klasseliste[DAG]=Klassetimeplan[[#Headers],[SØNDAG]])*(ROUNDDOWN($B51,10)>=ROUNDDOWN(Klasseliste[STARTTIDSPUNKT],10))*($B51<=Klasseliste[SLUTTIDSPUNKT]),Klasseliste[UNIK]),Klasseliste[UNIK],0),2),0)","v":0},{"$f":"IFERROR(INDEX(Klasseliste[],MATCH(SUMPRODUCT((Klasseliste[DAG]=Klassetimeplan[[#Headers],[MANDAG]])*(ROUNDDOWN($B51,10)>=ROUNDDOWN(Klasseliste[STARTTIDSPUNKT],10))*($B51<=Klasseliste[SLUTTIDSPUNKT]),Klasseliste[UNIK]),Klasseliste[UNIK],0),2),0)","v":0},{"$f":"IFERROR(INDEX(Klasseliste[],MATCH(SUMPRODUCT((Klasseliste[DAG]=Klassetimeplan[[#Headers],[TIRSDAG]])*(ROUNDDOWN($B51,10)>=ROUNDDOWN(Klasseliste[STARTTIDSPUNKT],10))*($B51<=Klasseliste[SLUTTIDSPUNKT]),Klasseliste[UNIK]),Klasseliste[UNIK],0),2),0)","v":0},{"$f":"IFERROR(INDEX(Klasseliste[],MATCH(SUMPRODUCT((Klasseliste[DAG]=Klassetimeplan[[#Headers],[ONSDAG]])*(ROUNDDOWN($B51,10)>=ROUNDDOWN(Klasseliste[STARTTIDSPUNKT],10))*($B51<=Klasseliste[SLUTTIDSPUNKT]),Klasseliste[UNIK]),Klasseliste[UNIK],0),2),0)","v":0},{"$f":"IFERROR(INDEX(Klasseliste[],MATCH(SUMPRODUCT((Klasseliste[DAG]=Klassetimeplan[[#Headers],[TORSDAG]])*(ROUNDDOWN($B51,10)>=ROUNDDOWN(Klasseliste[STARTTIDSPUNKT],10))*($B51<=Klasseliste[SLUTTIDSPUNKT]),Klasseliste[UNIK]),Klasseliste[UNIK],0),2),0)","v":0},{"$f":"IFERROR(INDEX(Klasseliste[],MATCH(SUMPRODUCT((Klasseliste[DAG]=Klassetimeplan[[#Headers],[FREDAG]])*(ROUNDDOWN($B51,10)>=ROUNDDOWN(Klasseliste[STARTTIDSPUNKT],10))*($B51<=Klasseliste[SLUTTIDSPUNKT]),Klasseliste[UNIK]),Klasseliste[UNIK],0),2),0)","v":0},{"$f":"IFERROR(INDEX(Klasseliste[],MATCH(SUMPRODUCT((Klasseliste[DAG]=Klassetimeplan[[#Headers],[LØRDAG]])*(ROUNDDOWN($B51,10)>=ROUNDDOWN(Klasseliste[STARTTIDSPUNKT],10))*($B51<=Klasseliste[SLUTTIDSPUNKT]),Klasseliste[UNIK]),Klasseliste[UNIK],0),2),0)","v":0}]
[null,"20:00:00",{"$f":"IFERROR(INDEX(Klasseliste[],MATCH(SUMPRODUCT((Klasseliste[DAG]=Klassetimeplan[[#Headers],[SØNDAG]])*(ROUNDDOWN($B52,10)>=ROUNDDOWN(Klasseliste[STARTTIDSPUNKT],10))*($B52<=Klasseliste[SLUTTIDSPUNKT]),Klasseliste[UNIK]),Klasseliste[UNIK],0),2),0)","v":0},{"$f":"IFERROR(INDEX(Klasseliste[],MATCH(SUMPRODUCT((Klasseliste[DAG]=Klassetimeplan[[#Headers],[MANDAG]])*(ROUNDDOWN($B52,10)>=ROUNDDOWN(Klasseliste[STARTTIDSPUNKT],10))*($B52<=Klasseliste[SLUTTIDSPUNKT]),Klasseliste[UNIK]),Klasseliste[UNIK],0),2),0)","v":0},{"$f":"IFERROR(INDEX(Klasseliste[],MATCH(SUMPRODUCT((Klasseliste[DAG]=Klassetimeplan[[#Headers],[TIRSDAG]])*(ROUNDDOWN($B52,10)>=ROUNDDOWN(Klasseliste[STARTTIDSPUNKT],10))*($B52<=Klasseliste[SLUTTIDSPUNKT]),Klasseliste[UNIK]),Klasseliste[UNIK],0),2),0)","v":0},{"$f":"IFERROR(INDEX(Klasseliste[],MATCH(SUMPRODUCT((Klasseliste[DAG]=Klassetimeplan[[#Headers],[ONSDAG]])*(ROUNDDOWN($B52,10)>=ROUNDDOWN(Klasseliste[STARTTIDSPUNKT],10))*($B52<=Klasseliste[SLUTTIDSPUNKT]),Klasseliste[UNIK]),Klasseliste[UNIK],0),2),0)","v":0},{"$f":"IFERROR(INDEX(Klasseliste[],MATCH(SUMPRODUCT((Klasseliste[DAG]=Klassetimeplan[[#Headers],[TORSDAG]])*(ROUNDDOWN($B52,10)>=ROUNDDOWN(Klasseliste[STARTTIDSPUNKT],10))*($B52<=Klasseliste[SLUTTIDSPUNKT]),Klasseliste[UNIK]),Klasseliste[UNIK],0),2),0)","v":0},{"$f":"IFERROR(INDEX(Klasseliste[],MATCH(SUMPRODUCT((Klasseliste[DAG]=Klassetimeplan[[#Headers],[FREDAG]])*(ROUNDDOWN($B52,10)>=ROUNDDOWN(Klasseliste[STARTTIDSPUNKT],10))*($B52<=Klasseliste[SLUTTIDSPUNKT]),Klasseliste[UNIK]),Klasseliste[UNIK],0),2),0)","v":0},{"$f":"IFERROR(INDEX(Klasseliste[],MATCH(SUMPRODUCT((Klasseliste[DAG]=Klassetimeplan[[#Headers],[LØRDAG]])*(ROUNDDOWN($B52,10)>=ROUNDDOWN(Klasseliste[STARTTIDSPUNKT],10))*($B52<=Klasseliste[SLUTTIDSPUNKT]),Klasseliste[UNIK]),Klasseliste[UNIK],0),2),0)","v":0}]
[null,"20:15:00",{"$f":"IFERROR(INDEX(Klasseliste[],MATCH(SUMPRODUCT((Klasseliste[DAG]=Klassetimeplan[[#Headers],[SØNDAG]])*(ROUNDDOWN($B53,10)>=ROUNDDOWN(Klasseliste[STARTTIDSPUNKT],10))*($B53<=Klasseliste[SLUTTIDSPUNKT]),Klasseliste[UNIK]),Klasseliste[UNIK],0),2),0)","v":0},{"$f":"IFERROR(INDEX(Klasseliste[],MATCH(SUMPRODUCT((Klasseliste[DAG]=Klassetimeplan[[#Headers],[MANDAG]])*(ROUNDDOWN($B53,10)>=ROUNDDOWN(Klasseliste[STARTTIDSPUNKT],10))*($B53<=Klasseliste[SLUTTIDSPUNKT]),Klasseliste[UNIK]),Klasseliste[UNIK],0),2),0)","v":0},{"$f":"IFERROR(INDEX(Klasseliste[],MATCH(SUMPRODUCT((Klasseliste[DAG]=Klassetimeplan[[#Headers],[TIRSDAG]])*(ROUNDDOWN($B53,10)>=ROUNDDOWN(Klasseliste[STARTTIDSPUNKT],10))*($B53<=Klasseliste[SLUTTIDSPUNKT]),Klasseliste[UNIK]),Klasseliste[UNIK],0),2),0)","v":0},{"$f":"IFERROR(INDEX(Klasseliste[],MATCH(SUMPRODUCT((Klasseliste[DAG]=Klassetimeplan[[#Headers],[ONSDAG]])*(ROUNDDOWN($B53,10)>=ROUNDDOWN(Klasseliste[STARTTIDSPUNKT],10))*($B53<=Klasseliste[SLUTTIDSPUNKT]),Klasseliste[UNIK]),Klasseliste[UNIK],0),2),0)","v":0},{"$f":"IFERROR(INDEX(Klasseliste[],MATCH(SUMPRODUCT((Klasseliste[DAG]=Klassetimeplan[[#Headers],[TORSDAG]])*(ROUNDDOWN($B53,10)>=ROUNDDOWN(Klasseliste[STARTTIDSPUNKT],10))*($B53<=Klasseliste[SLUTTIDSPUNKT]),Klasseliste[UNIK]),Klasseliste[UNIK],0),2),0)","v":0},{"$f":"IFERROR(INDEX(Klasseliste[],MATCH(SUMPRODUCT((Klasseliste[DAG]=Klassetimeplan[[#Headers],[FREDAG]])*(ROUNDDOWN($B53,10)>=ROUNDDOWN(Klasseliste[STARTTIDSPUNKT],10))*($B53<=Klasseliste[SLUTTIDSPUNKT]),Klasseliste[UNIK]),Klasseliste[UNIK],0),2),0)","v":0},{"$f":"IFERROR(INDEX(Klasseliste[],MATCH(SUMPRODUCT((Klasseliste[DAG]=Klassetimeplan[[#Headers],[LØRDAG]])*(ROUNDDOWN($B53,10)>=ROUNDDOWN(Klasseliste[STARTTIDSPUNKT],10))*($B53<=Klasseliste[SLUTTIDSPUNKT]),Klasseliste[UNIK]),Klasseliste[UNIK],0),2),0)","v":0}]
[null,"20:30:00",{"$f":"IFERROR(INDEX(Klasseliste[],MATCH(SUMPRODUCT((Klasseliste[DAG]=Klassetimeplan[[#Headers],[SØNDAG]])*(ROUNDDOWN($B54,10)>=ROUNDDOWN(Klasseliste[STARTTIDSPUNKT],10))*($B54<=Klasseliste[SLUTTIDSPUNKT]),Klasseliste[UNIK]),Klasseliste[UNIK],0),2),0)","v":0},{"$f":"IFERROR(INDEX(Klasseliste[],MATCH(SUMPRODUCT((Klasseliste[DAG]=Klassetimeplan[[#Headers],[MANDAG]])*(ROUNDDOWN($B54,10)>=ROUNDDOWN(Klasseliste[STARTTIDSPUNKT],10))*($B54<=Klasseliste[SLUTTIDSPUNKT]),Klasseliste[UNIK]),Klasseliste[UNIK],0),2),0)","v":0},{"$f":"IFERROR(INDEX(Klasseliste[],MATCH(SUMPRODUCT((Klasseliste[DAG]=Klassetimeplan[[#Headers],[TIRSDAG]])*(ROUNDDOWN($B54,10)>=ROUNDDOWN(Klasseliste[STARTTIDSPUNKT],10))*($B54<=Klasseliste[SLUTTIDSPUNKT]),Klasseliste[UNIK]),Klasseliste[UNIK],0),2),0)","v":0},{"$f":"IFERROR(INDEX(Klasseliste[],MATCH(SUMPRODUCT((Klasseliste[DAG]=Klassetimeplan[[#Headers],[ONSDAG]])*(ROUNDDOWN($B54,10)>=ROUNDDOWN(Klasseliste[STARTTIDSPUNKT],10))*($B54<=Klasseliste[SLUTTIDSPUNKT]),Klasseliste[UNIK]),Klasseliste[UNIK],0),2),0)","v":0},{"$f":"IFERROR(INDEX(Klasseliste[],MATCH(SUMPRODUCT((Klasseliste[DAG]=Klassetimeplan[[#Headers],[TORSDAG]])*(ROUNDDOWN($B54,10)>=ROUNDDOWN(Klasseliste[STARTTIDSPUNKT],10))*($B54<=Klasseliste[SLUTTIDSPUNKT]),Klasseliste[UNIK]),Klasseliste[UNIK],0),2),0)","v":0},{"$f":"IFERROR(INDEX(Klasseliste[],MATCH(SUMPRODUCT((Klasseliste[DAG]=Klassetimeplan[[#Headers],[FREDAG]])*(ROUNDDOWN($B54,10)>=ROUNDDOWN(Klasseliste[STARTTIDSPUNKT],10))*($B54<=Klasseliste[SLUTTIDSPUNKT]),Klasseliste[UNIK]),Klasseliste[UNIK],0),2),0)","v":0},{"$f":"IFERROR(INDEX(Klasseliste[],MATCH(SUMPRODUCT((Klasseliste[DAG]=Klassetimeplan[[#Headers],[LØRDAG]])*(ROUNDDOWN($B54,10)>=ROUNDDOWN(Klasseliste[STARTTIDSPUNKT],10))*($B54<=Klasseliste[SLUTTIDSPUNKT]),Klasseliste[UNIK]),Klasseliste[UNIK],0),2),0)","v":0}]
[null,"20:45:00",{"$f":"IFERROR(INDEX(Klasseliste[],MATCH(SUMPRODUCT((Klasseliste[DAG]=Klassetimeplan[[#Headers],[SØNDAG]])*(ROUNDDOWN($B55,10)>=ROUNDDOWN(Klasseliste[STARTTIDSPUNKT],10))*($B55<=Klasseliste[SLUTTIDSPUNKT]),Klasseliste[UNIK]),Klasseliste[UNIK],0),2),0)","v":0},{"$f":"IFERROR(INDEX(Klasseliste[],MATCH(SUMPRODUCT((Klasseliste[DAG]=Klassetimeplan[[#Headers],[MANDAG]])*(ROUNDDOWN($B55,10)>=ROUNDDOWN(Klasseliste[STARTTIDSPUNKT],10))*($B55<=Klasseliste[SLUTTIDSPUNKT]),Klasseliste[UNIK]),Klasseliste[UNIK],0),2),0)","v":0},{"$f":"IFERROR(INDEX(Klasseliste[],MATCH(SUMPRODUCT((Klasseliste[DAG]=Klassetimeplan[[#Headers],[TIRSDAG]])*(ROUNDDOWN($B55,10)>=ROUNDDOWN(Klasseliste[STARTTIDSPUNKT],10))*($B55<=Klasseliste[SLUTTIDSPUNKT]),Klasseliste[UNIK]),Klasseliste[UNIK],0),2),0)","v":0},{"$f":"IFERROR(INDEX(Klasseliste[],MATCH(SUMPRODUCT((Klasseliste[DAG]=Klassetimeplan[[#Headers],[ONSDAG]])*(ROUNDDOWN($B55,10)>=ROUNDDOWN(Klasseliste[STARTTIDSPUNKT],10))*($B55<=Klasseliste[SLUTTIDSPUNKT]),Klasseliste[UNIK]),Klasseliste[UNIK],0),2),0)","v":0},{"$f":"IFERROR(INDEX(Klasseliste[],MATCH(SUMPRODUCT((Klasseliste[DAG]=Klassetimeplan[[#Headers],[TORSDAG]])*(ROUNDDOWN($B55,10)>=ROUNDDOWN(Klasseliste[STARTTIDSPUNKT],10))*($B55<=Klasseliste[SLUTTIDSPUNKT]),Klasseliste[UNIK]),Klasseliste[UNIK],0),2),0)","v":0},{"$f":"IFERROR(INDEX(Klasseliste[],MATCH(SUMPRODUCT((Klasseliste[DAG]=Klassetimeplan[[#Headers],[FREDAG]])*(ROUNDDOWN($B55,10)>=ROUNDDOWN(Klasseliste[STARTTIDSPUNKT],10))*($B55<=Klasseliste[SLUTTIDSPUNKT]),Klasseliste[UNIK]),Klasseliste[UNIK],0),2),0)","v":0},{"$f":"IFERROR(INDEX(Klasseliste[],MATCH(SUMPRODUCT((Klasseliste[DAG]=Klassetimeplan[[#Headers],[LØRDAG]])*(ROUNDDOWN($B55,10)>=ROUNDDOWN(Klasseliste[STARTTIDSPUNKT],10))*($B55<=Klasseliste[SLUTTIDSPUNKT]),Klasseliste[UNIK]),Klasseliste[UNIK],0),2),0)","v":0}]
[null,"21:00:00",{"$f":"IFERROR(INDEX(Klasseliste[],MATCH(SUMPRODUCT((Klasseliste[DAG]=Klassetimeplan[[#Headers],[SØNDAG]])*(ROUNDDOWN($B56,10)>=ROUNDDOWN(Klasseliste[STARTTIDSPUNKT],10))*($B56<=Klasseliste[SLUTTIDSPUNKT]),Klasseliste[UNIK]),Klasseliste[UNIK],0),2),0)","v":0},{"$f":"IFERROR(INDEX(Klasseliste[],MATCH(SUMPRODUCT((Klasseliste[DAG]=Klassetimeplan[[#Headers],[MANDAG]])*(ROUNDDOWN($B56,10)>=ROUNDDOWN(Klasseliste[STARTTIDSPUNKT],10))*($B56<=Klasseliste[SLUTTIDSPUNKT]),Klasseliste[UNIK]),Klasseliste[UNIK],0),2),0)","v":0},{"$f":"IFERROR(INDEX(Klasseliste[],MATCH(SUMPRODUCT((Klasseliste[DAG]=Klassetimeplan[[#Headers],[TIRSDAG]])*(ROUNDDOWN($B56,10)>=ROUNDDOWN(Klasseliste[STARTTIDSPUNKT],10))*($B56<=Klasseliste[SLUTTIDSPUNKT]),Klasseliste[UNIK]),Klasseliste[UNIK],0),2),0)","v":0},{"$f":"IFERROR(INDEX(Klasseliste[],MATCH(SUMPRODUCT((Klasseliste[DAG]=Klassetimeplan[[#Headers],[ONSDAG]])*(ROUNDDOWN($B56,10)>=ROUNDDOWN(Klasseliste[STARTTIDSPUNKT],10))*($B56<=Klasseliste[SLUTTIDSPUNKT]),Klasseliste[UNIK]),Klasseliste[UNIK],0),2),0)","v":0},{"$f":"IFERROR(INDEX(Klasseliste[],MATCH(SUMPRODUCT((Klasseliste[DAG]=Klassetimeplan[[#Headers],[TORSDAG]])*(ROUNDDOWN($B56,10)>=ROUNDDOWN(Klasseliste[STARTTIDSPUNKT],10))*($B56<=Klasseliste[SLUTTIDSPUNKT]),Klasseliste[UNIK]),Klasseliste[UNIK],0),2),0)","v":0},{"$f":"IFERROR(INDEX(Klasseliste[],MATCH(SUMPRODUCT((Klasseliste[DAG]=Klassetimeplan[[#Headers],[FREDAG]])*(ROUNDDOWN($B56,10)>=ROUNDDOWN(Klasseliste[STARTTIDSPUNKT],10))*($B56<=Klasseliste[SLUTTIDSPUNKT]),Klasseliste[UNIK]),Klasseliste[UNIK],0),2),0)","v":0},{"$f":"IFERROR(INDEX(Klasseliste[],MATCH(SUMPRODUCT((Klasseliste[DAG]=Klassetimeplan[[#Headers],[LØRDAG]])*(ROUNDDOWN($B56,10)>=ROUNDDOWN(Klasseliste[STARTTIDSPUNKT],10))*($B56<=Klasseliste[SLUTTIDSPUNKT]),Klasseliste[UNIK]),Klasseliste[UNIK],0),2),0)","v":0}]

{"sheet":"Klasseliste","index":1,"n_rows":10,"n_cols":8,"rows_kept":10,"merged":[[0,1,0,5],[0,6,0,7]]}
[null,"KLASSELISTE",{"$nulls":4},"Klassetimeplan"]
[null,"KLASSE","ID","DAG","PLASSERING","STARTTIDSPUNKT","SLUTTIDSPUNKT","UNIK"]
[null,"Teknisk skriving","WR-121","MANDAG","Bygning A","13:00:00","14:00:00",{"$f":"ROW()-ROW(Klasseliste[[#Headers],[UNIK]])","v":1}]
[null,"Teknisk skriving","WR-121","ONSDAG","Bygning A","13:00:00","14:00:00",{"$f":"ROW()-ROW(Klasseliste[[#Headers],[UNIK]])","v":2}]
[null,"Muntlig framføring","SP-111","MANDAG","Bygning B","16:00:00","17:00:00",{"$f":"ROW()-ROW(Klasseliste[[#Headers],[UNIK]])","v":3}]
[null,"Helse og trening","HPE-295","TIRSDAG","Bygning B","11:00:00","12:00:00",{"$f":"ROW()-ROW(Klasseliste[[#Headers],[UNIK]])","v":4}]
[null,"Helse og trening","HPE-295","TORSDAG","Bygning B","11:00:00","12:00:00",{"$f":"ROW()-ROW(Klasseliste[[#Headers],[UNIK]])","v":5}]
[null,"Algebra","MTH-113","MANDAG","Bygning C","08:10:00","09:15:00",{"$f":"ROW()-ROW(Klasseliste[[#Headers],[UNIK]])","v":6}]
[null,"Algebra","MTH-113","ONSDAG","Bygning C","08:10:00","09:15:00",{"$f":"ROW()-ROW(Klasseliste[[#Headers],[UNIK]])","v":7}]
[null,"Algebra","MTH-113","FREDAG","Bygning C","08:10:00","09:15:00",{"$f":"ROW()-ROW(Klasseliste[[#Headers],[UNIK]])","v":8}]